Workbook

Sheet Open
A2: Frosted Shakes Open
A3: Futurity | B3: Der | C3: HS | D3: Age Inct. | E3: Nom | F3: Av | G3: REV | H3: Draw | I3: Rider Name | J3: Horse Name | K3: Pen | L3: Time | M3: Final Time | N3: Placing | O3: Money Earned | Q3: D Placing | S3: Split
G4: X | H4: 108 | I4: Nisa Berry | J4: VF Look Im Back | L4: 15.843 | N4: 1D 3rd | O4: 756.84 | Q4: 1D
D5: A | G5: X | H5: 299 | I5: Carlee Otero | J5: Uno | L5: 15.878 | N5: 1D 5th | O5: 445.2 | Q5: 2D | S5: 0.5
D6: S | G6: X | H6: 89 | I6: Teresa McClendon | J6: Striking Poses | L6: 15.918 | N6: 1D 6th | O6: 311.64 | Q6: 3D | S6: 0.5
D7: Y | G7: X | H7: 228 | I7: Maylee McCrary | J7: Hickorys Sugar Gal | L7: 16.184 | Q7: 4D | S7: 0.5
D8: Y | G8: X | H8: 158 | I8: Aspen Adams | J8: Credit The Gin | L8: 16.266 | Q8: 5D | S8: 0.5
C9: X | D9: A | G9: X | H9: 76 | I9: Kara Large | J9: Credit To Fiesta | L9: 16.268
D10: A | G10: X | H10: 26 | I10: Holly Fenoglio | J10: Dash Ta Flames | L10: 16.295 | N10: 2D 1st | O10: 890.4 | Q10: # Entered
B11: X | G11: X | H11: 21 | I11: LJ LaRue | J11: Goin Slow | L11: 16.304 | N11: 2D 2nd | O11: 742 | Q11: =COUNTA(I4:I503) -> 323
D12: A | G12: X | H12: 247 | I12: Liz Pinkston | J12: Add A Dash | L12: 16.314 | N12: 2D 4th | O12: 482.3
D13: S | G13: X | H13: 91 | I13: Martha Smith | J13: Firewatermakemehappy | L13: 16.376 | Q13: # Ran
D14: Y | G14: X | H14: 212 | I14: Acey Pinkston | J14: Turn My Swag On | L14: 16.503 | Q14: =COUNTA(L4:L503) -> 323
D15: Y | G15: X | H15: 106 | I15: Stormi Branch | J15: Demon | L15: 16.646
G16: X | H16: 252 | I16: Janee' Ornelas | L16: 16.653 | Q16: # Left
G17: X | H17: 36 | I17: Kyra Boling | J17: Teninas Hayday | L17: 16.691 | Q17: =$Q$11-$Q$14 -> 0
D18: A | G18: X | H18: 296 | I18: Savannah Palmore | J18: A Streakin Legacy | L18: 16.721
G19: X | H19: 241 | I19: Jade Crago | J19: CM Bubblin Barbie | L19: 16.746
D20: Y | G20: X | H20: 249 | I20: Bradie Bacon | J20: Millie | L20: 16.773
G21: X | H21: 144 | I21: Alisha Todd | J21: Shexa Amarillo Doc | L21: 16.862
D22: Y | G22: X | H22: 172 | I22: Haley Hunt | J22: TF Savage Lady | L22: 16.909
D23: Y | G23: X | H23: 115 | I23: Biloxi Shultz | J23: Senor La Jolla | L23: 16.969
C24: X | D24: Y | G24: X | H24: 232 | I24: Felicity Martin | J24: White Lick Willy | L24: 16.995
D25: S | G25: X | H25: 157 | I25: Diana Cory | J25: Lady Bugs Jewel | L25: 16.995
A26: X | G26: X | H26: 28 | I26: Rive rRiver Stuckey | J26: Unshakable Kingdom | L26: 17.068
G27: X | H27: 190 | I27: Cheyenne Searcy | J27: DDD Alabamas Frostem | L27: 17.077
G28: X | H28: 17 | I28: Ashley Sanders | J28: Review Me Downtown | L28: 17.138
D29: A | G29: X | H29: 107 | I29: Tiffany Cox | J29: C3 Lacy | L29: 17.342 | N29: 4D 7th | O29: 111.3
D30: S | G30: X | H30: 49 | I30: Martha Smith | J30: Victory Blue Moon | L30: 17.376
G31: X | H31: 104 | I31: Aryn Wilkerson | J31: SpicyLittleStar | L31: 17.492
G32: X | H32: 313 | I32: Jessica Patanella | J32: Easy Ole Pistol | L32: 17.559
G33: X | H33: 290 | I33: Nicole Buell | J33: Dirty Money | L33: 17.561
B34: X | D34: Y | G34: X | H34: 271 | I34: Felicity Martin | J34: Noble Cinco | L34: 17.614
D35: Y | G35: X | H35: 142 | I35: Ashley Hunt | J35: Lilys Rare Jewel | L35: 17.693
D36: Y | G36: X | H36: 140 | I36: Haley Hunt | J36: Shez Jettn Speed | L36: 17.778
G37: X | H37: 273 | I37: Jade Crago | J37: JC Burnin It Down | L37: 18.574
D38: A | G38: X | H38: 82 | I38: Nikki Morrison | J38: Cashncarryon Fab | L38: 18.63
A39: X | D39: A | G39: X | H39: 121 | I39: Lauren Whitmire | J39: Down Dash Anytime | L39: nt
D40: S | G40: X | H40: 182 | I40: Lisa Wernli | J40: Flashs Fine Effort | L40: nt16.006
D41: S | G41: X | H41: 202 | I41: Karen Manning | J41: Shut the Blazin Door | L41: nt16.074
C42: X | D42: A | G42: X | H42: 260 | I42: Savannah Palmore | J42: Fortunate Colton | L42: nt16.116
D43: Y | G43: X | H43: 251 | I43: Acey Pinkston | J43: Putt Putt | L43: nt16.234
G44: X | H44: 71 | I44: Nisa Berry | J44: Code Name Fame | L44: nt16.536
G45: X | H45: 194 | I45: Cierra McMurray | J45: SF Givem Hell Honey | L45: nt16.581
A46: X | G46: X | H46: 31 | I46: Kelly Valdez | J46: Sixes Fling | L46: nt16.678
G47: X | H47: 6 | I47: Adrianna Bronaugh | J47: Fire Mia Memory | L47: nt16.764
D48: S | G48: X | H48: 81 | I48: Pattie Mackie | J48: Flitter Fuel Lad | L48: nt16.801
G49: X | H49: 298 | I49: Aimee Williams | J49: Hi Charge Kid | L49: nt17.318
D50: S | G50: X | H50: 138 | I50: Shawn Fields | J50: Neat Little Nina | L50: nt17.388
H51: 156 | I51: Cierra Chapman | J51: Sun In Fun | L51: 15.79 | N51: 1D 1st | O51: 1068.48
H52: 211 | I52: Ivy Hurst | J52: Lilsistadontcha | L52: 15.829 | N52: 1D 2nd | O52: 890.4
C53: X | D53: S | H53: 136 | I53: Martha Jordan | J53: JL Fourtafame | L53: 15.857 | N53: 1D 4th | O53: 578.76
H54: 35 | I54: Stevi Hillman | J54: Playgun | L54: 15.929 | N54: 1D 7th | O54: 222.6
H55: 56 | I55: Cierra Chapman | J55: Lever Action | L55: 15.956 | N55: 1D 8th | O55: 178.08
D56: S | H56: 33 | I56: Sherri Barnes | J56: Famous Little Jet | L56: 15.975
H57: 322 | I57: Jennifer Kent | J57: Bobbi | L57: 15.996
D58: Y | H58: 295 | I58: Riley Cook | J58: Crown Royal Morning | L58: 16.028
H59: 79 | I59: Kate Neill | J59: Dox Mega Magnolia | L59: 16.031
D60: S | H60: 203 | I60: Lynn Saunders | J60: Chumly | L60: 16.119
H61: 272 | I61: Ivy Hurst | J61: BW Sunshine N Whiskey | L61: 16.13
H62: 243 | I62: Stephanie Childs | J62: Imajettinfaster | L62: 16.145
H63: 258 | I63: Phillip Kenyon | J63: Tillies Hay Day | L63: 16.154
H64: 233 | I64: J T Cooper | J64: Mighty Money Red | L64: 16.155
H65: 101 | I65: Brooke Bingham | J65: Nickiecash | L65: 16.198
H66: 69 | I66: Lindsey Hoffman | J66: First Down Deception | L66: 16.202
H67: 116 | I67: Brian Ramirez | J67: Holly | L67: 16.22
H68: 122 | I68: Stephanie Snazuk | J68: SR Ima Royal Streaker | L68: 16.223
D69: S | H69: 166 | I69: Lynn Saunders | J69: Popcorn | L69: 16.232
D70: A | H70: 256 | I70: Summer Mcauley | J70: Somebody Be Smokin | L70: 16.235
B71: X | D71: A | H71: 135 | I71: Kara Large | J71: RSL FirstRoyalEddie | L71: 16.252
H72: 152 | I72: Casey Hammons | J72: EMW Coco Fame | L72: 16.253
H73: 214 | I73: Sarah Christensen | J73: Preacher | L73: 16.28
D74: A | H74: 171 | I74: Cassidy Kruse | J74: Dash To Tim | L74: 16.284
H75: 323 | I75: Taryn Parsonage | J75: Twitch | L75: 16.287
H76: 53 | I76: Stevi Hillman | J76: Sherlock | L76: 16.288
B77: X | H77: 197 | I77: Sayde Simpson | J77: GIGI | L77: 16.31 | N77: 2D 3rd | O77: 630.7
A78: X | H78: 127 | I78: Cierra Chapman | J78: Wood B A Babe | L78: 16.331 | N78: 2D 5th | O78: 371
H79: 219 | I79: Benjamin Beall | J79: Hip E | L79: 16.345 | N79: 2D 6th | O79: 259.7
H80: 222 | I80: Shelley Morgan | J80: Flirt | L80: 16.346 | N80: 2D 7th | O80: 185.5
H81: 198 | I81: Emma Abbott | J81: unicorn | L81: 16.356 | N81: 2D 8th | O81: 148.4
H82: 279 | I82: Kathy Fields | J82: Regarding Numbers | L82: 16.37
H83: 316 | I83: Bryant Hicks | J83: Pimp Juice | L83: 16.382
B84: X | H84: 147 | I84: Jamie Wilson | J84: A Streak Of Phame | L84: 16.388
H85: 54 | I85: Tyra Cane | J85: Bugs In My Kahlua | L85: 16.392
H86: 133 | I86: Darby FOx | J86: LZK Snowmethemoney | L86: 16.405
H87: 123 | I87: Kathy Muehlen | J87: Fly Away Gal | L87: 16.407
H88: 304 | I88: Summer Kutchera | J88: FC Classic Sunday | L88: 16.411
H89: 58 | I89: Crystal Allcorn | J89: Rooster | L89: 16.412
D90: Y | H90: 285 | I90: Ashlyn Renfroe | J90: Dance My Way To Victory | L90: 16.413
H91: 317 | I91: Blake Myers | J91: Swampy | L91: 16.415
D92: Y | H92: 234 | I92: Maggie Stephens | J92: Cinch | L92: 16.424
D93: Y | H93: 90 | I93: Paige Clayton | J93: Im A French Captain | L93: 16.438
H94: 227 | I94: Christi Durfey | J94: DJG Nowata Smoke | L94: 16.439
H95: 97 | I95: Jill Crotta | J95: Lookin So Hot | L95: 16.442
D96: S | H96: 269 | I96: Dina Allred | J96: Diesel | L96: 16.457
H97: 48 | I97: Darby Fox | J97: Frosted With Fame | L97: 16.471
A98: X | H98: 9 | I98: Tana Renick | J98: Justanuthr Famouswon | L98: 16.475
H99: 134 | I99: Shannon Pearson | J99: Reds Roany Pony | L99: 16.481
H100: 310 | I100: Jesse Jaureguito | J100: Foxx Me | L100: 16.483
H101: 145 | I101: Mica Shackelford | J101: Swinging Tryst | L101: 16.485
H102: 80 | I102: Darby FOx | J102: Yoda Cat | L102: 16.492
H103: 207 | I103: A D Ruckteschler | J103: Mr. Spoon | L103: 16.492
D104: S | H104: 63 | I104: Kym Blanchard | J104: Crucial Timing | L104: 16.497
H105: 3 | I105: Katie Perkins | J105: Heartbreak | L105: 16.505
H106: 75 | I106: Becky Dillard | J106: Wow Shes Hot | L106: 16.51
H107: 154 | I107: Ritchie Olsen | J107: One Quick Corona | L107: 16.541
D108: A | H108: 13 | I108: Shantell Hayes | J108: Perk Up N Dash | L108: 16.548
H109: 161 | I109: Molly Steffen | J109: Rugged French Lady | L109: 16.549
H110: 39 | I110: Kristi Smith | J110: ELS Dynaflow Hooter | L110: 16.55
H111: 34 | I111: Fawn Aldrich | J111: Whoneedsfameimfrench | L111: 16.561
H112: 163 | I112: Taygen Sufferling | J112: Plain Brown N Shiney | L112: 16.563
D113: Y | H113: 200 | I113: Faith Ross | J113: Brady | L113: 16.572
H114: 239 | I114: Justice Phillips | J114: Frenchman Dox Fox | L114: 16.574
H115: 25 | I115: Justine Botner | J115: Hell On Socks | L115: 16.58
H116: 289 | I116: Kaitlyn Kasterke | J116: Dirty | L116: 16.594
H117: 70 | I117: Julie Roberts | J117: Too Fast For Socks | L117: 16.595
H118: 139 | I118: Reiney Lucas | J118: Sizzle To The Touch | L118: 16.602
H119: 173 | I119: Mica Shackelford | J119: Hallmarks Nikki | L119: 16.607
H120: 189 | I120: Kacey Kirby | J120: H1 | L120: 16.609
H121: 159 | I121: Victoria Alexander | J121: Frostbite | L121: 16.617
H122: 278 | I122: Kylee Cook | J122: Executing the Cause | L122: 16.622
H123: 208 | I123: Nisa Berry | J123: Wonder Woman | L123: 16.638
D124: Y | H124: 216 | I124: Alex Stokes | J124: Mo Sugar Bars Bee | L124: 16.646
D125: S | H125: 95 | I125: Kym Blanchard | J125: YU Frosty Water | L125: 16.648
H126: 72 | I126: Fawn Aldrich | J126: Flits Carmel Frost | L126: 16.649
H127: 41 | I127: Becky Dillard | J127: Shes Hot Loop | L127: 16.659
H128: 124 | I128: Shelby Shackleford | J128: RTF A Natural Stoli | L128: 16.665
H129: 201 | I129: Josie Feller | L129: 16.666
H130: 19 | I130: Misty Peek | J130: Amos | L130: 16.683
H131: 29 | I131: Natasha Gray | J131: Bogies French Perk | L131: 16.687
H132: 187 | I132: Emily Mangoine | J132: Rock Roll N Repete | L132: 16.701
H133: 68 | I133: Seth Conboy | J133: Hondo Texico | L133: 16.71
A134: X | H134: 268 | I134: Lydia Butler | J134: Beduino N Fire Water | L134: 16.718
H135: 177 | I135: Crystal Benedict | J135: Smokin | L135: 16.728
D136: Y | H136: 320 | I136: Kaitlin Anderson | J136: Baby B | L136: 16.729
H137: 7 | I137: Stevi Hillman | J137: Luv My Fame | L137: 16.738
H138: 102 | I138: Brooke Sully | J138: EZ Shake Em | L138: 16.742
D139: S | H139: 120 | I139: Belinda Coppinger | J139: Miss America Fame | L139: 16.745
H140: 66 | I140: Mackenzie Welch | J140: Lucy | L140: 16.746
H141: 226 | I141: Kacey Kirby | J141: H2 | L141: 16.767
D142: S | H142: 78 | I142: Belinda Coppinger | J142: Chiseled On My Mind | L142: 16.776
D143: S | H143: 12 | I143: Joni McKim | J143: Perkslivingthedream | L143: 16.777
H144: 50 | I144: Daryll Kessler | J144: Barclosednoforewater | L144: 16.778
H145: 59 | I145: Kayli Morris | J145: Fortune N Fuel | L145: 16.778
D146: A | H146: 52 | I146: Mandi Cleveland | J146: Little Bit Of Load | L146: 16.786
H147: 24 | I147: Brittany Pierson | J147: Catcee Lady | L147: 16.788
H148: 55 | I148: Salem Brooks | J148: Sugar Smooth Duke | L148: 16.791 | N148: 3D 1st | O148: 712.32
H149: 291 | I149: Kenzie Stewart | J149: Nic Time | L149: 16.793 | N149: 3D 2nd | O149: 593.6
D150: S | H150: 259 | I150: Simone Elmore | J150: Badger A Conchadrift | L150: 16.796 | N150: 3D 3rd | O150: 504.56
H151: 51 | I151: Mikayla Cox | J151: Royal Quick Runaway | L151: 16.8 | N151: 3D 4th | O151: 385.84
H152: 96 | I152: Lacy Matthews | J152: Shilohs Perky Pistol | L152: 16.816 | N152: 3D 5th | O152: 296.8
H153: 261 | I153: Tallaney Nilson | J153: Alida | L153: 16.818 | N153: 3D 6th | O153: 207.76
D154: A | H154: 103 | I154: Lindsey Stevens | J154: JM I Got Faith | L154: 16.834 | N154: 3D 7th | O154: 148.4
D155: S | H155: 263 | I155: Pam Underwood | J155: Holy Smokin Turf | L155: 16.844 | N155: 3D 8th | O155: 118.72
H156: 155 | I156: Emily Mangoine | J156: Wild Rock | L156: 16.848
H157: 160 | I157: Jens Rudibaugh | J157: Hidin N The Boonies | L157: 16.853
H158: 223 | I158: Hadley Durfey | J158: Ivy | L158: 16.865
H159: 132 | I159: Trinity Ann Smith | J159: Shes A Keo Lady | L159: 16.867
H160: 262 | I160: Destri Devenport | J160: Mia | L160: 16.872
H161: 14 | I161: Lylan Corey | J161: Honeyboon Lilly | L161: 16.874
D162: Y | H162: 93 | I162: Riley Arrington | J162: CEO Kinda Beautiful | L162: 16.879
D163: S | H163: 11 | I163: Dee Dee Jordan | J163: Lil Yella Draw | L163: 16.884
H164: 1 | I164: Kaitlyn Prentice | J164: My French Signature | L164: 16.901
H165: 167 | I165: Shelby Shackleford | J165: Hali Bug | L165: 16.908
H166: 86 | I166: Lacey Soderberg | J166: Once Upon A Miracle | L166: 16.919
H167: 315 | I167: Lane Kelly Hadley | J167: Watch Ibea Rockstar | L167: 16.92
H168: 47 | I168: Teresa Winnett | J168: Dudes FlashinNCashin | L168: 16.921
D169: Y | H169: 254 | I169: Alex Stokes | J169: View This Lady Rose | L169: 16.942
D170: S | H170: 300 | I170: Terry Quintana | J170: I Just Wanna Run | L170: 16.945
H171: 236 | I171: Cayla Cory | J171: H2 | L171: 16.956
A172: X | H172: 235 | I172: Phillip Kenyon | J172: Make It a Mojito | L172: 16.961
H173: 248 | I173: Jo Fisher | J173: Betty | L173: 16.961
B174: X | H174: 61 | I174: Krista Lucas | J174: Crown Royal Jet | L174: 16.977
H175: 307 | I175: Brooke Hickey | J175: Shaggy | L175: 16.982
H176: 275 | I176: Rachel Arms | J176: JS Bubblin Firewater | L176: 17.011
H177: 185 | I177: Ivy Hurst | J177: Hudson Haywire | L177: 17.019
A178: X | H178: 246 | I178: Danyelle Campbell | J178: Rockin My Fame | L178: 17.028
H179: 30 | I179: Krista Lucas | J179: CM Bodee Bullion | L179: 17.038
H180: 221 | I180: Jo Fisher | J180: Kiss | L180: 17.042
H181: 87 | I181: Salem Brooks | J181: Diamons Miss Fred | L181: 17.043
D182: S | H182: 118 | I182: Connie Randolph | J182: Hot Rod Kitty Catt | L182: 17.044
A183: X | H183: 20 | I183: Jaylan Neatherlin | J183: Happy Dayz | L183: 17.055
D184: Y | H184: 297 | I184: Reece CooK | J184: Frosted In Dreams | L184: 17.065
H185: 137 | I185: Allison Fonte | J185: Little Marvel Olena | L185: 17.072
H186: 209 | I186: Kathy Warren | J186: Gonnagetluckytonight | L186: 17.078
H187: 303 | I187: Destri Devenport | J187: Pety | L187: 17.089
H188: 191 | I188: Molly Steffen | J188: James Dean | L188: 17.109
A189: X | H189: 210 | I189: Danyelle Campbell | J189: Dirty Money | L189: 17.11
H190: 282 | I190: Stephanie Childs | J190: Bobs Gotta Turbo | L190: 17.111
D191: Y | H191: 151 | I191: Shia Williams | J191: VY Chasin Coins | L191: 17.133
D192: A | H192: 308 | I192: Tammy Hickey | J192: Josey | L192: 17.14
H193: 294 | I193: Ruby Cobb | J193: Jake | L193: 17.152
H194: 245 | I194: Marlyn Bland | J194: Nicks Super Chance | L194: 17.161
H195: 311 | I195: Tiffany Broome | J195: Cashinon Firewater | L195: 17.176
H196: 218 | I196: Emily Mangoine | J196: CouldaWoodaSHoulda | L196: 17.177
H197: 18 | I197: Josianne St Cry | J197: LD | L197: 17.225
A198: X | D198: S | H198: 43 | I198: Pattie Mackie | J198: Frosty Six Moons | L198: 17.236
D199: S | H199: 4 | I199: Kathy Minteer | J199: Little Bit | L199: 17.247
H200: 62 | I200: Tiffany Durham | J200: Rudy | L200: 17.265
H201: 126 | I201: Lisa Jo Velliquette | J201: Namgis D 44 | L201: 17.265
... 302 more rows

Sheet Senior
A1: Futurity | B1: Der | C1: Age Inct. | D1: BBR | E1: Draw | F1: Rider Name | G1: Horse Name | H1: Pen | I1: Time | J1: Final Time | K1: Placing | L1: Money Earned
E2: 1 | F2: Martha Jordan | G2: JL Fourtafame | I2: 15.857 | K2: 1D 1st | L2: 139
E3: 2 | F3: Teresa McClendon | G3: Striking Poses | I3: 15.918 | K3: 1D 2nd | L3: 92
E4: 3 | F4: Sherri Barnes | G4: Famous Little Jet | I4: 15.975
E5: 4 | F5: Lynn Saunders | G5: Chumly | I5: 16.119
E6: 5 | F6: Lynn Saunders | G6: Popcorn | I6: 16.232
E7: 6 | F7: Martha Smith | G7: Firewatermakemehappy | I7: 16.376 | K7: 2D 1st | L7: 119
E8: 7 | F8: Dina Allred | G8: Diesel | I8: 16.457 | K8: 2D 2nd | L8: 79
E9: 8 | F9: Kym Blanchard | G9: Crucial Timing | I9: 16.497
E10: 9 | F10: Kym Blanchard | G10: YU Frosty Water | I10: 16.648
E11: 10 | F11: Belinda Coppinger | G11: Miss America Fame | I11: 16.745
E12: 11 | F12: Belinda Coppinger | G12: Chiseled On My Mind | I12: 16.776
E13: 12 | F13: Joni McKim | G13: Perkslivingthedream | I13: 16.777
E14: 13 | F14: Simone Elmore | G14: Badger A Conchadrift | I14: 16.796
E15: 14 | F15: Pam Underwood | G15: Holy Smokin Turf | I15: 16.844
E16: 15 | F16: Dee Dee Jordan | G16: Lil Yella Draw | I16: 16.884 | K16: 3D 1st | L16: 79
E17: 16 | F17: Terry Quintana | G17: I Just Wanna Run | I17: 16.945 | K17: 3D 2nd | L17: 53
E18: 17 | F18: Diana Cory | G18: Lady Bugs Jewel | I18: 16.995
E19: 18 | F19: Connie Randolph | G19: Hot Rod Kitty Catt | I19: 17.044
E20: 19 | F20: Pattie Mackie | G20: Frosty Six Moons | I20: 17.236
E21: 20 | F21: Kathy Minteer | G21: Little Bit | I21: 17.247
E22: 21 | F22: Terry Quintana | G22: Jerry | I22: 17.338
E23: 22 | F23: Martha Smith | G23: Victory Blue Moon | I23: 17.376
E24: 23 | F24: Terry Quintana | G24: Dirfferent Eyes | I24: 17.761 | K24: 4D 1st/2nd | L24: 99
E25: 24 | F25: Lisa Wernli | G25: Flashs Fine Effort | I25: nt16.006
E26: 25 | F26: Karen Manning | G26: Shut the Blazin Door | I26: nt16.074
E27: 26 | F27: Martha Jordan | G27: BH Dash Of Ginger | I27: nt16.424
E28: 27 | F28: Pattie Mackie | G28: Flitter Fuel Lad | I28: nt16.801
E29: 28 | F29: Jana Kurosky | G29: Winnie Red's Kai | I29: nt16.825
E30: 29 | F30: Lisa Wernli | G30: Proudtobefrench | I30: nt17.039
E31: 30 | F31: Terri Ford | G31: Injun Needs Cash | I31: nt17.105
E32: 31 | F32: Connie Randolph | G32: Mickey Mouth | I32: nt17.381
E33: 32 | F33: Shawn Fields | G33: Neat Little Nina | I33: nt17.388
E34: 33 | F34: Sherri Barnes | G34: Racing For Perks | I34: nt25.143
E35: 34
E36: 35
E37: 36
E38: 37
E39: 38
E40: 39
E41: 40
E42: 41 | J42: =IF(OR(H42=5,H42=10, H42=15, H42="BP",H42="SCR"),"NT",I42) -> 0
E43: 42 | J43: 0
E44: 43 | J44: 0
E45: 44 | J45: 0
E46: 45 | J46: 0
E47: 46 | J47: 0
E48: 47 | J48: 0
E49: 48 | J49: 0
E50: 49 | J50: 0
E51: 50 | J51: 0
E52: 51 | J52: 0
E53: 52 | J53: 0
E54: 53 | J54: 0
E55: 54 | J55: 0
E56: 55 | J56: 0
E57: 56 | J57: 0
E58: 57 | J58: 0
E59: 58 | J59: 0
E60: 59 | J60: 0
E61: 60 | J61: 0
E62: 61 | J62: 0
E63: 62 | J63: 0
E64: 63 | J64: 0
E65: 64 | J65: 0
E66: 65 | J66: 0
E67: 66 | J67: =IF(OR(H67=5,H67=10, H67=15, H67="BP",H67="SCR"),"NT",I67) -> 0
E68: 67 | J68: 0
E69: 68 | J69: 0
E70: 69 | J70: 0
E71: 70 | J71: 0
E72: 71 | J72: 0
E73: 72 | J73: 0
E74: 73 | J74: 0
E75: 74 | J75: 0
E76: 75 | J76: 0
E77: 76 | J77: 0
E78: 77 | J78: 0
E79: 78 | J79: 0
E80: 79 | J80: 0
E81: 80 | J81: 0
E82: 81 | J82: 0
E83: 82 | J83: 0
E84: 83 | J84: 0
E85: 84 | J85: 0
E86: 85 | J86: 0
E87: 86 | J87: 0
E88: 87 | J88: 0
E89: 88 | J89: 0
E90: 89 | J90: 0
E91: 90 | J91: 0
E92: 91 | J92: 0
E93: 92 | J93: 0
E94: 93 | J94: 0
E95: 94 | J95: 0
E96: 95 | J96: 0
E97: 96 | J97: 0
E98: 97 | J98: 0
E99: 98 | J99: 0
E100: 99 | J100: 0
E101: 100 | J101: 0
E102: 101 | J102: 0
E103: 102 | J103: 0
E104: 103 | J104: 0
E105: 104 | J105: 0
E106: 105 | J106: 0
E107: 106 | J107: 0
E108: 107 | J108: 0
E109: 108 | J109: 0
E110: 109 | J110: 0
E111: 110 | J111: 0
E112: 111 | J112: 0
E113: 112 | J113: 0
E114: 113 | J114: 0
E115: 114 | J115: 0
E116: 115 | J116: 0
E117: 116 | J117: 0
E118: 117 | J118: 0
E119: 118 | J119: 0
E120: 119 | J120: 0
E121: 120 | J121: 0
E122: 121 | J122: 0
E123: 122 | J123: 0
E124: 123 | J124: 0
E125: 124 | J125: 0
E126: 125 | J126: 0
E127: 126 | J127: 0
E128: 127 | J128: 0
E129: 128 | J129: 0
E130: 129 | J130: 0
E131: 130 | J131: =IF(OR(H131=5,H131=10, H131=15, H131="BP",H131="SCR"),"NT",I131) -> 0
E132: 131 | J132: 0
E133: 132 | J133: 0
E134: 133 | J134: 0
E135: 134 | J135: 0
E136: 135 | J136: 0
E137: 136 | J137: 0
E138: 137 | J138: 0
E139: 138 | J139: 0
E140: 139 | J140: 0
E141: 140 | J141: 0
E142: 141 | J142: 0
E143: 142 | J143: 0
E144: 143 | J144: 0
E145: 144 | J145: 0
E146: 145 | J146: 0
E147: 146 | J147: 0
E148: 147 | J148: 0
E149: 148 | J149: 0
E150: 149 | J150: 0
E151: 150 | J151: 0
E152: 151 | J152: 0
E153: 152 | J153: 0
E154: 153 | J154: 0
E155: 154 | J155: 0
E156: 155 | J156: 0
E157: 156 | J157: 0
E158: 157 | J158: 0
E159: 158 | J159: 0
E160: 159 | J160: 0
E161: 160 | J161: 0
E162: 161 | J162: 0
E163: 162 | J163: 0
E164: 163 | J164: 0
E165: 164 | J165: 0
E166: 165 | J166: 0
E167: 166 | J167: 0
E168: 167 | J168: 0
E169: 168 | J169: 0
E170: 169 | J170: 0
E171: 170 | J171: 0
E172: 171 | J172: 0
E173: 172 | J173: 0
E174: 173 | J174: 0
E175: 174 | J175: 0
E176: 175 | J176: 0
E177: 176 | J177: 0
E178: 177 | J178: 0
E179: 178 | J179: 0
E180: 179 | J180: 0
E181: 180 | J181: 0
E182: 181 | J182: 0
E183: 182 | J183: 0
E184: 183 | J184: 0
E185: 184 | J185: 0
E186: 185 | J186: 0
E187: 186 | J187: 0
E188: 187 | J188: 0
E189: 188 | J189: 0
E190: 189 | J190: 0
E191: 190 | J191: 0
E192: 191 | J192: 0
E193: 192 | J193: 0
E194: 193 | J194: 0
E195: 194 | J195: =IF(OR(H195=5,H195=10, H195=15, H195="BP",H195="SCR"),"NT",I195) -> 0
E196: 195 | J196: 0
E197: 196 | J197: 0
E198: 197 | J198: 0
E199: 198 | J199: 0
E200: 199 | J200: 0
... 101 more rows

Sheet Adult
A1: Futurity | B1: Der | C1: Age Inct. | D1: BBR | E1: Draw | F1: Rider Name | G1: Horse Name | H1: Pen | I1: Time | J1: Final Time | K1: Placing | L1: Money Earned
E2: 1 | F2: Carlee Otero | G2: Uno | I2: 15.878 | K2: 1D 1st | L2: 97
E3: 2 | F3: Summer Mcauley | G3: Somebody Be Smokin | I3: 16.235 | K3: 1D 2nd | L3: 64
E4: 3 | F4: Kara Large | G4: RSL FirstRoyalEddie | I4: 16.252
E5: 4 | F5: Kara Large | G5: Credit To Fiesta | I5: 16.268
E6: 5 | F6: Cassidy Kruse | G6: Dash To Tim | I6: 16.284
E7: 6 | F7: Holly Fenoglio | G7: Dash Ta Flames | I7: 16.295
E8: 7 | F8: Liz Pinkston | G8: Add A Dash | I8: 16.314
E9: 8 | F9: Shantell Hayes | G9: Perk Up N Dash | I9: 16.548 | K9: 2D 1st | L9: 83
E10: 9 | F10: Savannah Palmore | G10: A Streakin Legacy | I10: 16.721 | K10: 2D 2nd | L10: 55
E11: 10 | F11: Mandi Cleveland | G11: Little Bit Of Load | I11: 16.786
E12: 11 | F12: Lindsey Stevens | G12: JM I Got Faith | I12: 16.834
E13: 12 | F13: Tammy Hickey | G13: Josey | I13: 17.14 | K13: 3D 1st | L13: 55
E14: 13 | F14: Lauren Whitmire | G14: WR Famous Amigo | I14: 17.266 | K14: 3D 2nd | L14: 37
E15: 14 | F15: Tiffany Cox | G15: C3 Lacy | I15: 17.342
E16: 15 | F16: Lindsey Stevens | G16: Wadafire | I16: 17.554 | K16: 4D 1st | L16: 41
E17: 16 | F17: Nikki Morrison | G17: Cashncarryon Fab | I17: 18.63 | K17: 4D 2nd | L17: 28
E18: 17 | F18: Lauren Whitmire | G18: Down Dash Anytime | I18: nt
E19: 18 | F19: Savannah Palmore | G19: Fortunate Colton | I19: nt16.116
E20: 19 | F20: Carlos Renato | G20: Cisco | I20: nt16.293
E21: 20 | F21: Summer Mcauley | G21: Moonlight Jazz | I21: nt16.469
E22: 21 | F22: Stephanie Johnson | G22: Gucci | I22: nt17.250
E23: 22 | F23: Carlos Renato | G23: Waylen James | I23: nt17.473
E24: 23 | F24: Chelsie Petty | G24: Jade | I24: nt17.553
E25: 24
E26: 25
E27: 26
E28: 27
E29: 28
E30: 29
E31: 30
E32: 31
E33: 32
E34: 33
E35: 34
E36: 35
E37: 36
E38: 37
E39: 38
E40: 39
E41: 40
E42: 41
E43: 42
E44: 43
E45: 44
E46: 45
E47: 46
E48: 47
E49: 48
E50: 49
E51: 50
E52: 51 | J52: =IF(OR(H52=5,H52=10, H52=15, H52="BP",H52="SCR"),"NT",I52) -> 0
E53: 52 | J53: 0
E54: 53 | J54: 0
E55: 54 | J55: 0
E56: 55 | J56: 0
E57: 56 | J57: 0
E58: 57 | J58: 0
E59: 58 | J59: 0
E60: 59 | J60: 0
E61: 60 | J61: 0
E62: 61 | J62: 0
E63: 62 | J63: 0
E64: 63 | J64: 0
E65: 64 | J65: 0
E66: 65 | J66: 0
E67: 66 | J67: =IF(OR(H67=5,H67=10, H67=15, H67="BP",H67="SCR"),"NT",I67) -> 0
E68: 67 | J68: 0
E69: 68 | J69: 0
E70: 69 | J70: 0
E71: 70 | J71: 0
E72: 71 | J72: 0
E73: 72 | J73: 0
E74: 73 | J74: 0
E75: 74 | J75: 0
E76: 75 | J76: 0
E77: 76 | J77: 0
E78: 77 | J78: 0
E79: 78 | J79: 0
E80: 79 | J80: 0
E81: 80 | J81: 0
E82: 81 | J82: 0
E83: 82 | J83: 0
E84: 83 | J84: 0
E85: 84 | J85: 0
E86: 85 | J86: 0
E87: 86 | J87: 0
E88: 87 | J88: 0
E89: 88 | J89: 0
E90: 89 | J90: 0
E91: 90 | J91: 0
E92: 91 | J92: 0
E93: 92 | J93: 0
E94: 93 | J94: 0
E95: 94 | J95: 0
E96: 95 | J96: 0
E97: 96 | J97: 0
E98: 97 | J98: 0
E99: 98 | J99: 0
E100: 99 | J100: 0
E101: 100 | J101: 0
E102: 101 | J102: 0
E103: 102 | J103: 0
E104: 103 | J104: 0
E105: 104 | J105: 0
E106: 105 | J106: 0
E107: 106 | J107: 0
E108: 107 | J108: 0
E109: 108 | J109: 0
E110: 109 | J110: 0
E111: 110 | J111: 0
E112: 111 | J112: 0
E113: 112 | J113: 0
E114: 113 | J114: 0
E115: 114 | J115: 0
E116: 115 | J116: 0
E117: 116 | J117: 0
E118: 117 | J118: 0
E119: 118 | J119: 0
E120: 119 | J120: 0
E121: 120 | J121: 0
E122: 121 | J122: 0
E123: 122 | J123: 0
E124: 123 | J124: 0
E125: 124 | J125: 0
E126: 125 | J126: 0
E127: 126 | J127: 0
E128: 127 | J128: 0
E129: 128 | J129: 0
E130: 129 | J130: 0
E131: 130 | J131: =IF(OR(H131=5,H131=10, H131=15, H131="BP",H131="SCR"),"NT",I131) -> 0
E132: 131 | J132: 0
E133: 132 | J133: 0
E134: 133 | J134: 0
E135: 134 | J135: 0
E136: 135 | J136: 0
E137: 136 | J137: 0
E138: 137 | J138: 0
E139: 138 | J139: 0
E140: 139 | J140: 0
E141: 140 | J141: 0
E142: 141 | J142: 0
E143: 142 | J143: 0
E144: 143 | J144: 0
E145: 144 | J145: 0
E146: 145 | J146: 0
E147: 146 | J147: 0
E148: 147 | J148: 0
E149: 148 | J149: 0
E150: 149 | J150: 0
E151: 150 | J151: 0
E152: 151 | J152: 0
E153: 152 | J153: 0
E154: 153 | J154: 0
E155: 154 | J155: 0
E156: 155 | J156: 0
E157: 156 | J157: 0
E158: 157 | J158: 0
E159: 158 | J159: 0
E160: 159 | J160: 0
E161: 160 | J161: 0
E162: 161 | J162: 0
E163: 162 | J163: 0
E164: 163 | J164: 0
E165: 164 | J165: 0
E166: 165 | J166: 0
E167: 166 | J167: 0
E168: 167 | J168: 0
E169: 168 | J169: 0
E170: 169 | J170: 0
E171: 170 | J171: 0
E172: 171 | J172: 0
E173: 172 | J173: 0
E174: 173 | J174: 0
E175: 174 | J175: 0
E176: 175 | J176: 0
E177: 176 | J177: 0
E178: 177 | J178: 0
E179: 178 | J179: 0
E180: 179 | J180: 0
E181: 180 | J181: 0
E182: 181 | J182: 0
E183: 182 | J183: 0
E184: 183 | J184: 0
E185: 184 | J185: 0
E186: 185 | J186: 0
E187: 186 | J187: 0
E188: 187 | J188: 0
E189: 188 | J189: 0
E190: 189 | J190: 0
E191: 190 | J191: 0
E192: 191 | J192: 0
E193: 192 | J193: 0
E194: 193 | J194: 0
E195: 194 | J195: =IF(OR(H195=5,H195=10, H195=15, H195="BP",H195="SCR"),"NT",I195) -> 0
E196: 195 | J196: 0
E197: 196 | J197: 0
E198: 197 | J198: 0
E199: 198 | J199: 0
E200: 199 | J200: 0
... 101 more rows

Sheet Youth
A1: Futurity | B1: Der | C1: Age Inct. | D1: BBR | E1: Draw | F1: Rider Name | G1: Horse Name | H1: Pen | I1: Time | J1: Placing | K1: Money Earned
E2: 1 | F2: Riley Cook | G2: Crown Royal Morning | I2: 16.028 | J2: 1D 1st | K2: 122
E3: 2 | F3: Maylee McCrary | G3: Hickorys Sugar Gal | I3: 16.184 | J3: 1D 2nd | K3: 81
E4: 3 | F4: Aspen Adams | G4: Credit The Gin | I4: 16.266
E5: 4 | F5: Ashlyn Renfroe | G5: Dance My Way To Victory | I5: 16.413
E6: 5 | F6: Maggie Stephens | G6: Cinch | I6: 16.424
E7: 6 | F7: Paige Clayton | G7: Im A French Captain | I7: 16.438
E8: 7 | F8: Acey Pinkston | G8: Turn My Swag On | I8: 16.503
E9: 8 | F9: Faith Ross | G9: Brady | I9: 16.572 | J9: 2D 1st | K9: 104
E10: 9 | F10: Stormi Branch | G10: Demon | I10: 16.646 | J10: 2D 2nd/3rd | K10: 35
E11: 10 | F11: Alex Stokes | G11: Mo Sugar Bars Bee | I11: 16.646 | J11: 2D 2nd/3rd | K11: 35
E12: 11 | F12: Kaitlin Anderson | G12: Baby B | I12: 16.729
E13: 12 | F13: Bradie Bacon | G13: Millie | I13: 16.773
E14: 13 | F14: Riley Arrington | G14: CEO Kinda Beautiful | I14: 16.879
E15: 14 | F15: Haley Hunt | G15: TF Savage Lady | I15: 16.909
E16: 15 | F16: Alex Stokes | G16: View This Lady Rose | I16: 16.942
E17: 16 | F17: Biloxi Shultz | G17: Senor La Jolla | I17: 16.969
E18: 17 | F18: Felicity Martin | G18: White Lick Willy | I18: 16.995
E19: 18 | F19: Reece CooK | G19: Frosted In Dreams | I19: 17.065 | J19: 3D 1st | K19: 70
E20: 19 | F20: Shia Williams | G20: VY Chasin Coins | I20: 17.133 | J20: 3D 2nd | K20: 46
E21: 20 | F21: Felicity Martin | G21: Noble Cinco | I21: 17.614 | J21: 4D 1st | K21: 52
E22: 21 | F22: Ashley Hunt | G22: Lilys Rare Jewel | I22: 17.693 | J22: 4D 2nd | K22: 35
E23: 22 | F23: Haley Hunt | G23: Shez Jettn Speed | I23: 17.778
E24: 23 | F24: Aubree Abbott | G24: White Lightening | I24: nt
E25: 24 | F25: Acey Pinkston | G25: Putt Putt | I25: nt16.234
E26: 25 | F26: Whitley Burns | G26: Blair | I26: nt16.555
E27: 26 | F27: Caitlyn McCreary | G27: Gmscherryohxpress | I27: nt16.916
E28: 27 | F28: Laynee Massey | G28: Reds Native Ryder | I28: nt17.903
E29: 28 | F29: Mikayla Cearley | G29: TF PeppySmokenSavage | I29: nt18.250
E30: 29 | F30: Maylee McCrary | G30: SK Easy Struttin Go | I30: nt21.732
E31: 30
E32: 31
E33: 32
E34: 33
E35: 34
E36: 35
E37: 36
E38: 37
E39: 38
E40: 39
E41: 40
E42: 41
E43: 42
E44: 43
E45: 44
E46: 45
E47: 46
E48: 47
E49: 48
E50: 49
E51: 50
E52: 51
E53: 52
E54: 53
E55: 54
E56: 55
E57: 56
E58: 57
E59: 58
E60: 59
E61: 60
E62: 61
E63: 62
E64: 63
E65: 64
E66: 65
E67: 66
E68: 67
E69: 68
E70: 69
E71: 70
E72: 71
E73: 72
E74: 73
E75: 74
E76: 75
E77: 76
E78: 77
E79: 78
E80: 79
E81: 80
E82: 81
E83: 82
E84: 83
E85: 84
E86: 85
E87: 86
E88: 87
E89: 88
E90: 89
E91: 90
E92: 91
E93: 92
E94: 93
E95: 94
E96: 95
E97: 96
E98: 97
E99: 98
E100: 99
E101: 100
E102: 101
E103: 102
E104: 103
E105: 104
E106: 105
E107: 106
E108: 107
E109: 108
E110: 109
E111: 110
E112: 111
E113: 112
E114: 113
E115: 114
E116: 115
E117: 116
E118: 117
E119: 118
E120: 119
E121: 120
E122: 121
E123: 122
E124: 123
E125: 124
E126: 125
E127: 126
E128: 127
E129: 128
E130: 129
E131: 130
E132: 131
E133: 132
E134: 133
E135: 134
E136: 135
E137: 136
E138: 137
E139: 138
E140: 139
E141: 140
E142: 141
E143: 142
E144: 143
E145: 144
E146: 145
E147: 146
E148: 147
E149: 148
E150: 149
E151: 150
E152: 151
E153: 152
E154: 153
E155: 154
E156: 155
E157: 156
E158: 157
E159: 158
E160: 159
E161: 160
E162: 161
E163: 162
E164: 163
E165: 164
E166: 165
E167: 166
E168: 167
E169: 168
E170: 169
E171: 170
E172: 171
E173: 172
E174: 173
E175: 174
E176: 175
E177: 176
E178: 177
E179: 178
E180: 179
E181: 180
E182: 181
E183: 182
E184: 183
E185: 184
E186: 185
E187: 186
E188: 187
E189: 188
E190: 189
E191: 190
E192: 191
E193: 192
E194: 193
E195: 194
E196: 195
E197: 196
E198: 197
E199: 198
E200: 199
... 101 more rows

Sheet Derby
A1: Futurity | B1: Der | C1: Age Inct. | D1: BBR | E1: Draw | F1: Rider Name | G1: Horse Name | H1: c/o | I1: Time | J1: Final Time | K1: Placing | L1: Money Earned
E2: 1 | F2: Kara Large | G2: RSL FirstRoyalEddie | I2: 16.252 | K2: 1st | L2: 126
E3: 2 | F3: LJ LaRue | G3: Goin Slow | I3: 16.304 | K3: 2nd | L3: 54
E4: 3 | F4: Sayde Simpson | G4: GIGI | I4: 16.31
E5: 4 | F5: Jamie Wilson | G5: A Streak Of Phame | I5: 16.388
E6: 5 | F6: Krista Lucas | G6: Crown Royal Jet | I6: 16.977
E7: 6 | F7: Sayde Simpson | G7: Izzy | I7: 17.296
E8: 7 | F8: Lauren Strough | G8: Bulliesgoinplatinum | I8: 17.386
E9: 8 | F9: Felicity Martin | G9: Noble Cinco | I9: 17.614
E10: 9 | F10: Maylee McCrary | G10: SK Easy Struttin Go | I10: nt21.732
E11: 10
E12: 11
E13: 12
E14: 13
E15: 14
E16: 15
E17: 16
E18: 17 | J18: =IF(OR(H18=5,H18=10, H18=15, H18="BP",H18="SCR"),"NT",I18) -> 0
E19: 18 | J19: 0
E20: 19 | J20: 0
E21: 20 | J21: 0
E22: 21 | J22: 0
E23: 22 | J23: 0
E24: 23 | J24: 0
E25: 24 | J25: 0
E26: 25 | J26: 0
E27: 26 | J27: 0
E28: 27 | J28: 0
E29: 28 | J29: 0
E30: 29 | J30: 0
E31: 30 | J31: 0
E32: 31 | J32: 0
E33: 32 | J33: 0
E34: 33 | J34: 0
E35: 34 | J35: 0
E36: 35 | J36: 0
E37: 36 | J37: 0
E38: 37 | J38: 0
E39: 38 | J39: 0
E40: 39 | J40: 0
E41: 40 | J41: 0
E42: 41 | J42: 0
E43: 42 | J43: 0
E44: 43 | J44: 0
E45: 44 | J45: 0
E46: 45 | J46: 0
E47: 46 | J47: 0
E48: 47 | J48: 0
E49: 48 | J49: 0
E50: 49 | J50: 0
E51: 50 | J51: 0
E52: 51 | J52: 0
E53: 52 | J53: 0
E54: 53 | J54: 0
E55: 54 | J55: 0
E56: 55 | J56: 0
E57: 56 | J57: 0
E58: 57 | J58: 0
E59: 58 | J59: 0
E60: 59 | J60: 0
E61: 60 | J61: 0
E62: 61 | J62: 0
E63: 62 | J63: 0
E64: 63 | J64: 0
E65: 64 | J65: 0
E66: 65 | J66: 0
E67: 66 | J67: 0
E68: 67 | J68: 0
E69: 68 | J69: 0
E70: 69 | J70: 0
E71: 70 | J71: 0
E72: 71 | J72: 0
E73: 72 | J73: 0
E74: 73 | J74: 0
E75: 74 | J75: 0
E76: 75 | J76: 0
E77: 76 | J77: 0
E78: 77 | J78: 0
E79: 78 | J79: 0
E80: 79 | J80: 0
E81: 80 | J81: 0
E82: 81 | J82: =IF(OR(H82=5,H82=10, H82=15, H82="BP",H82="SCR"),"NT",I82) -> 0
E83: 82 | J83: 0
E84: 83 | J84: 0
E85: 84 | J85: 0
E86: 85 | J86: 0
E87: 86 | J87: 0
E88: 87 | J88: 0
E89: 88 | J89: 0
E90: 89 | J90: 0
E91: 90 | J91: 0
E92: 91 | J92: 0
E93: 92 | J93: 0
E94: 93 | J94: 0
E95: 94 | J95: 0
E96: 95 | J96: 0
E97: 96 | J97: 0
E98: 97 | J98: 0
E99: 98 | J99: 0
E100: 99 | J100: 0
E101: 100 | J101: 0
E102: 101 | J102: 0
E103: 102 | J103: 0
E104: 103 | J104: 0
E105: 104 | J105: 0
E106: 105 | J106: 0
E107: 106 | J107: 0
E108: 107 | J108: 0
E109: 108 | J109: 0
E110: 109 | J110: 0
E111: 110 | J111: 0
E112: 111 | J112: 0
E113: 112 | J113: 0
E114: 113 | J114: 0
E115: 114 | J115: 0
E116: 115 | J116: 0
E117: 116 | J117: 0
E118: 117 | J118: 0
E119: 118 | J119: 0
E120: 119 | J120: 0
E121: 120 | J121: 0
E122: 121 | J122: 0
E123: 122 | J123: 0
E124: 123 | J124: 0
E125: 124 | J125: 0
E126: 125 | J126: 0
E127: 126 | J127: 0
E128: 127 | J128: 0
E129: 128 | J129: 0
E130: 129 | J130: 0
E131: 130 | J131: 0
E132: 131 | J132: 0
E133: 132 | J133: 0
E134: 133 | J134: 0
E135: 134 | J135: 0
E136: 135 | J136: 0
E137: 136 | J137: 0
E138: 137 | J138: 0
E139: 138 | J139: 0
E140: 139 | J140: 0
E141: 140 | J141: 0
E142: 141 | J142: 0
E143: 142 | J143: 0
E144: 143 | J144: 0
E145: 144 | J145: 0
E146: 145 | J146: =IF(OR(H146=5,H146=10, H146=15, H146="BP",H146="SCR"),"NT",I146) -> 0
E147: 146 | J147: 0
E148: 147 | J148: 0
E149: 148 | J149: 0
E150: 149 | J150: 0
E151: 150 | J151: 0
E152: 151 | J152: 0
E153: 152 | J153: 0
E154: 153 | J154: 0
E155: 154 | J155: 0
E156: 155 | J156: 0
E157: 156 | J157: 0
E158: 157 | J158: 0
E159: 158 | J159: 0
E160: 159 | J160: 0
E161: 160 | J161: 0
E162: 161 | J162: 0
E163: 162 | J163: 0
E164: 163 | J164: 0
E165: 164 | J165: 0
E166: 165 | J166: 0
E167: 166 | J167: 0
E168: 167 | J168: 0
E169: 168 | J169: 0
E170: 169 | J170: 0
E171: 170 | J171: 0
E172: 171 | J172: 0
E173: 172 | J173: 0
E174: 173 | J174: 0
E175: 174 | J175: 0
E176: 175 | J176: 0
E177: 176 | J177: 0
E178: 177 | J178: 0
E179: 178 | J179: 0
E180: 179 | J180: 0
E181: 180 | J181: 0
E182: 181 | J182: 0
E183: 182 | J183: 0
E184: 183 | J184: 0
E185: 184 | J185: 0
E186: 185 | J186: 0
E187: 186 | J187: 0
E188: 187 | J188: 0
E189: 188 | J189: 0
E190: 189 | J190: 0
E191: 190 | J191: 0
E192: 191 | J192: 0
E193: 192 | J193: 0
E194: 193 | J194: 0
E195: 194 | J195: 0
E196: 195 | J196: 0
E197: 196 | J197: 0
E198: 197 | J198: 0
E199: 198 | J199: 0
E200: 199 | J200: 0
... 101 more rows

Sheet Revolution
A1: Der | B1: Age Inct. | C1: BBR | D1: Draw | E1: Rider Name | F1: Horse Name | G1: c/o | H1: Time | I1: Final Time | J1: Placing | K1: Money Earned
D2: 1 | E2: Nisa Berry | F2: VF Look Im Back | H2: 15.843 | J2: 1D 1st
D3: 2 | E3: Carlee Otero | F3: Uno | H3: 15.878
D4: 3 | E4: Teresa McClendon | F4: Striking Poses | H4: 15.918
D5: 4 | E5: Maylee McCrary | F5: Hickorys Sugar Gal | H5: 16.184
D6: 5 | E6: Aspen Adams | F6: Credit The Gin | H6: 16.266
D7: 6 | E7: Kara Large | F7: Credit To Fiesta | H7: 16.268
D8: 7 | E8: Holly Fenoglio | F8: Dash Ta Flames | H8: 16.295
D9: 8 | E9: LJ LaRue | F9: Goin Slow | H9: 16.304
D10: 9 | E10: Liz Pinkston | F10: Add A Dash | H10: 16.314
D11: 10 | E11: Martha Smith | F11: Firewatermakemehappy | H11: 16.376 | J11: 2D 1st
D12: 11 | E12: Acey Pinkston | F12: Turn My Swag On | H12: 16.503
D13: 12 | E13: Stormi Branch | F13: Demon | H13: 16.646
D14: 13 | E14: Janee' Ornelas | F14: Rodeo Strider | H14: 16.653
D15: 14 | E15: Kyra Boling | F15: Teninas Hayday | H15: 16.691
D16: 15 | E16: Savannah Palmore | F16: A Streakin Legacy | H16: 16.721
D17: 16 | E17: Jade Crago | F17: CM Bubblin Barbie | H17: 16.746
D18: 17 | E18: Bradie Bacon | F18: Millie | H18: 16.773
D19: 18 | E19: Alisha Todd | F19: Shexa Amarillo Doc | H19: 16.862 | J19: 3D 1st
D20: 19 | E20: Haley Hunt | F20: TF Savage Lady | H20: 16.909
D21: 20 | E21: Biloxi Shultz | F21: Senor La Jolla | H21: 16.969
D22: 21 | E22: Felicity Martin | F22: White Lick Willy | H22: 16.995
D23: 22 | E23: Diana Cory | F23: Lady Bugs Jewel | H23: 16.995
D24: 23 | E24: Rive rRiver Stuckey | F24: Unshakable Kingdom | H24: 17.068
D25: 24 | E25: Cheyenne Searcy | F25: DDD Alabamas Frostem | H25: 17.077
D26: 25 | E26: Ashley Sanders | F26: Review Me Downtown | H26: 17.138
D27: 26 | E27: Tiffany Cox | F27: C3 Lacy | H27: 17.342
D28: 27 | E28: Martha Smith | F28: Victory Blue Moon | H28: 17.376 | J28: 4D 1st
D29: 28 | E29: Aryn Wilkerson | F29: SpicyLittleStar | H29: 17.492
D30: 29 | E30: Jessica Patanella | F30: Easy Ole Pistol | H30: 17.559
D31: 30 | E31: Nicole Buell | F31: Dirty Money | H31: 17.561
D32: 31 | E32: Felicity Martin | F32: Noble Cinco | H32: 17.614
D33: 32 | E33: Ashley Hunt | F33: Lilys Rare Jewel | H33: 17.693
D34: 33 | E34: Haley Hunt | F34: Shez Jettn Speed | H34: 17.778
D35: 34 | E35: Jade Crago | F35: JC Burnin It Down | H35: 18.574
D36: 35 | E36: Nikki Morrison | F36: Cashncarryon Fab | H36: 18.63
D37: 36 | E37: Lauren Whitmire | F37: Down Dash Anytime | H37: nt
D38: 37 | E38: Lisa Wernli | F38: Flashs Fine Effort | H38: nt16.006
D39: 38 | E39: Karen Manning | F39: Shut the Blazin Door | H39: nt16.074
D40: 39 | E40: Savannah Palmore | F40: Fortunate Colton | H40: nt16.116 | I40: =IF(OR(G40=5,G40=10, G40=15, G40="BP",G40="SCR"),"NT",H40) -> nt16.116
D41: 40 | E41: Acey Pinkston | F41: Putt Putt | H41: nt16.234 | I41: nt16.234
D42: 41 | E42: Nisa Berry | F42: Code Name Fame | H42: nt16.536 | I42: nt16.536
D43: 42 | E43: Cierra McMurray | F43: SF Givem Hell Honey | H43: nt16.581 | I43: nt16.581
D44: 43 | E44: Kelly Valdez | F44: Sixes Fling | H44: nt16.678 | I44: nt16.678
D45: 44 | E45: Adrianna Bronaugh | F45: Fire Mia Memory | H45: nt16.764 | I45: nt16.764
D46: 45 | E46: Pattie Mackie | F46: Flitter Fuel Lad | H46: nt16.801 | I46: nt16.801
D47: 46 | E47: Aimee Williams | F47: Hi Charge Kid | H47: nt17.318 | I47: nt17.318
D48: 47 | E48: Shawn Fields | F48: Neat Little Nina | H48: nt17.388 | I48: nt17.388
D49: 48 | I49: 0
D50: 49 | I50: 0
D51: 50 | I51: 0
D52: 51 | I52: 0
D53: 52 | I53: 0
D54: 53 | I54: 0
D55: 54 | I55: 0
D56: 55 | I56: 0
D57: 56 | I57: 0
D58: 57 | I58: 0
D59: 58 | I59: 0
D60: 59 | I60: 0
D61: 60 | I61: 0
D62: 61 | I62: 0
D63: 62 | I63: 0
D64: 63 | I64: 0
D65: 64 | I65: 0
D66: 65 | I66: 0
D67: 66 | I67: 0
D68: 67 | I68: 0
D69: 68 | I69: 0
D70: 69 | I70: 0
D71: 70 | I71: 0
D72: 71 | I72: 0
D73: 72 | I73: 0
D74: 73 | I74: 0
D75: 74 | I75: 0
D76: 75 | I76: 0
D77: 76 | I77: 0
D78: 77 | I78: 0
D79: 78 | I79: 0
D80: 79 | I80: 0
D81: 80 | I81: 0
D82: 81 | I82: 0
D83: 82 | I83: 0
D84: 83 | I84: 0
D85: 84 | I85: 0
D86: 85 | I86: 0
D87: 86 | I87: 0
D88: 87 | I88: 0
D89: 88 | I89: 0
D90: 89 | I90: 0
D91: 90 | I91: 0
D92: 91 | I92: 0
D93: 92 | I93: 0
D94: 93 | I94: 0
D95: 94 | I95: 0
D96: 95 | I96: 0
D97: 96 | I97: 0
D98: 97 | I98: 0
D99: 98 | I99: 0
D100: 99 | I100: 0
D101: 100 | I101: 0
D102: 101 | I102: 0
D103: 102 | I103: 0
D104: 103 | I104: =IF(OR(G104=5,G104=10, G104=15, G104="BP",G104="SCR"),"NT",H104) -> 0
D105: 104 | I105: 0
D106: 105 | I106: 0
D107: 106 | I107: 0
D108: 107 | I108: 0
D109: 108 | I109: 0
D110: 109 | I110: 0
D111: 110 | I111: 0
D112: 111 | I112: 0
D113: 112 | I113: 0
D114: 113 | I114: 0
D115: 114 | I115: 0
D116: 115 | I116: 0
D117: 116 | I117: 0
D118: 117 | I118: 0
D119: 118 | I119: 0
D120: 119 | I120: 0
D121: 120 | I121: 0
D122: 121 | I122: 0
D123: 122 | I123: 0
D124: 123 | I124: 0
D125: 124 | I125: 0
D126: 125 | I126: 0
D127: 126 | I127: 0
D128: 127 | I128: 0
D129: 128 | I129: 0
D130: 129 | I130: 0
D131: 130 | I131: 0
D132: 131 | I132: 0
D133: 132 | I133: 0
D134: 133 | I134: 0
D135: 134 | I135: 0
D136: 135 | I136: 0
D137: 136 | I137: 0
D138: 137 | I138: 0
D139: 138 | I139: 0
D140: 139 | I140: 0
D141: 140 | I141: 0
D142: 141 | I142: 0
D143: 142 | I143: 0
D144: 143 | I144: 0
D145: 144 | I145: 0
D146: 145 | I146: 0
D147: 146 | I147: 0
D148: 147 | I148: 0
D149: 148 | I149: 0
D150: 149 | I150: 0
D151: 150 | I151: 0
D152: 151 | I152: 0
D153: 152 | I153: 0
D154: 153 | I154: 0
D155: 154 | I155: 0
D156: 155 | I156: 0
D157: 156 | I157: 0
D158: 157 | I158: 0
D159: 158 | I159: 0
D160: 159 | I160: 0
D161: 160 | I161: 0
D162: 161 | I162: 0
D163: 162 | I163: 0
D164: 163 | I164: 0
D165: 164 | I165: 0
D166: 165 | I166: 0
D167: 166 | I167: 0
D168: 167 | I168: =IF(OR(G168=5,G168=10, G168=15, G168="BP",G168="SCR"),"NT",H168) -> 0
D169: 168 | I169: 0
D170: 169 | I170: 0
D171: 170 | I171: 0
D172: 171 | I172: 0
D173: 172 | I173: 0
D174: 173 | I174: 0
D175: 174 | I175: 0
D176: 175 | I176: 0
D177: 176 | I177: 0
D178: 177 | I178: 0
D179: 178 | I179: 0
D180: 179 | I180: 0
D181: 180 | I181: 0
D182: 181 | I182: 0
D183: 182 | I183: 0
D184: 183 | I184: 0
D185: 184 | I185: 0
D186: 185 | I186: 0
D187: 186 | I187: 0
D188: 187 | I188: 0
D189: 188 | I189: 0
D190: 189 | I190: 0
D191: 190 | I191: 0
D192: 191 | I192: 0
D193: 192 | I193: 0
D194: 193 | I194: 0
D195: 194 | I195: 0
D196: 195 | I196: 0
D197: 196 | I197: 0
D198: 197 | I198: 0
D199: 198 | I199: 0
D200: 199 | I200: 0
... 101 more rows

Sheet Highstakes
A1: Futurity | B1: Der | C1: Age Inct. | D1: BBR | E1: Draw | F1: Rider Name | G1: Horse Name | H1: c/o | I1: Time | J1: Final Time | K1: Placing | L1: Money Earned
E2: 1 | F2: Martha Jordan | G2: JL Fourtafame | I2: 15.857 | K2: 1st | L2: 400
E3: 2 | F3: Kara Large | G3: Credit To Fiesta | I3: 16.268
E4: 3 | F4: Felicity Martin | G4: White Lick Willy | I4: 16.995
E5: 4 | F5: Savannah Palmore | G5: Fortunate Colton | I5: nt16.116
E6: 5 | F6: Martha Jordan | G6: BH Dash Of Ginger | I6: nt16.424
E7: 6
E8: 7
E9: 8
E10: 9
E11: 10
E12: 11
E13: 12
E14: 13
E15: 14
E16: 15
E17: 16
E18: 17
E19: 18
E20: 19
E21: 20
E22: 21
E23: 22
E24: 23
E25: 24
E26: 25
E27: 26
E28: 27
E29: 28
E30: 29
E31: 30
E32: 31
E33: 32
E34: 33
E35: 34
E36: 35
E37: 36
E38: 37
E39: 38
E40: 39 | J40: =IF(OR(H40=5,H40=10, H40=15, H40="BP",H40="SCR"),"NT",I40) -> 0
E41: 40 | J41: 0
E42: 41 | J42: 0
E43: 42 | J43: 0
E44: 43 | J44: 0
E45: 44 | J45: 0
E46: 45 | J46: 0
E47: 46 | J47: 0
E48: 47 | J48: 0
E49: 48 | J49: 0
E50: 49 | J50: 0
E51: 50 | J51: 0
E52: 51 | J52: 0
E53: 52 | J53: 0
E54: 53 | J54: 0
E55: 54 | J55: 0
E56: 55 | J56: 0
E57: 56 | J57: 0
E58: 57 | J58: 0
E59: 58 | J59: 0
E60: 59 | J60: 0
E61: 60 | J61: 0
E62: 61 | J62: 0
E63: 62 | J63: 0
E64: 63 | J64: 0
E65: 64 | J65: 0
E66: 65 | J66: 0
E67: 66 | J67: 0
E68: 67 | J68: 0
E69: 68 | J69: 0
E70: 69 | J70: 0
E71: 70 | J71: 0
E72: 71 | J72: 0
E73: 72 | J73: 0
E74: 73 | J74: 0
E75: 74 | J75: 0
E76: 75 | J76: 0
E77: 76 | J77: 0
E78: 77 | J78: 0
E79: 78 | J79: 0
E80: 79 | J80: 0
E81: 80 | J81: 0
E82: 81 | J82: 0
E83: 82 | J83: 0
E84: 83 | J84: 0
E85: 84 | J85: 0
E86: 85 | J86: 0
E87: 86 | J87: 0
E88: 87 | J88: 0
E89: 88 | J89: 0
E90: 89 | J90: 0
E91: 90 | J91: 0
E92: 91 | J92: 0
E93: 92 | J93: 0
E94: 93 | J94: 0
E95: 94 | J95: 0
E96: 95 | J96: 0
E97: 96 | J97: 0
E98: 97 | J98: 0
E99: 98 | J99: 0
E100: 99 | J100: 0
E101: 100 | J101: 0
E102: 101 | J102: 0
E103: 102 | J103: 0
E104: 103 | J104: =IF(OR(H104=5,H104=10, H104=15, H104="BP",H104="SCR"),"NT",I104) -> 0
E105: 104 | J105: 0
E106: 105 | J106: 0
E107: 106 | J107: 0
E108: 107 | J108: 0
E109: 108 | J109: 0
E110: 109 | J110: 0
E111: 110 | J111: 0
E112: 111 | J112: 0
E113: 112 | J113: 0
E114: 113 | J114: 0
E115: 114 | J115: 0
E116: 115 | J116: 0
E117: 116 | J117: 0
E118: 117 | J118: 0
E119: 118 | J119: 0
E120: 119 | J120: 0
E121: 120 | J121: 0
E122: 121 | J122: 0
E123: 122 | J123: 0
E124: 123 | J124: 0
E125: 124 | J125: 0
E126: 125 | J126: 0
E127: 126 | J127: 0
E128: 127 | J128: 0
E129: 128 | J129: 0
E130: 129 | J130: 0
E131: 130 | J131: 0
E132: 131 | J132: 0
E133: 132 | J133: 0
E134: 133 | J134: 0
E135: 134 | J135: 0
E136: 135 | J136: 0
E137: 136 | J137: 0
E138: 137 | J138: 0
E139: 138 | J139: 0
E140: 139 | J140: 0
E141: 140 | J141: 0
E142: 141 | J142: 0
E143: 142 | J143: 0
E144: 143 | J144: 0
E145: 144 | J145: 0
E146: 145 | J146: 0
E147: 146 | J147: 0
E148: 147 | J148: 0
E149: 148 | J149: 0
E150: 149 | J150: 0
E151: 150 | J151: 0
E152: 151 | J152: 0
E153: 152 | J153: 0
E154: 153 | J154: 0
E155: 154 | J155: 0
E156: 155 | J156: 0
E157: 156 | J157: 0
E158: 157 | J158: 0
E159: 158 | J159: 0
E160: 159 | J160: 0
E161: 160 | J161: 0
E162: 161 | J162: 0
E163: 162 | J163: 0
E164: 163 | J164: 0
E165: 164 | J165: 0
E166: 165 | J166: 0
E167: 166 | J167: 0
E168: 167 | J168: =IF(OR(H168=5,H168=10, H168=15, H168="BP",H168="SCR"),"NT",I168) -> 0
E169: 168 | J169: 0
E170: 169 | J170: 0
E171: 170 | J171: 0
E172: 171 | J172: 0
E173: 172 | J173: 0
E174: 173 | J174: 0
E175: 174 | J175: 0
E176: 175 | J176: 0
E177: 176 | J177: 0
E178: 177 | J178: 0
E179: 178 | J179: 0
E180: 179 | J180: 0
E181: 180 | J181: 0
E182: 181 | J182: 0
E183: 182 | J183: 0
E184: 183 | J184: 0
E185: 184 | J185: 0
E186: 185 | J186: 0
E187: 186 | J187: 0
E188: 187 | J188: 0
E189: 188 | J189: 0
E190: 189 | J190: 0
E191: 190 | J191: 0
E192: 191 | J192: 0
E193: 192 | J193: 0
E194: 193 | J194: 0
E195: 194 | J195: 0
E196: 195 | J196: 0
E197: 196 | J197: 0
E198: 197 | J198: 0
E199: 198 | J199: 0
E200: 199 | J200: 0
... 101 more rows

Sheet Futurity
A1: Futurity | B1: Der | C1: Age Inct. | D1: BBR | E1: Draw | F1: Rider Name | G1: Horse Name | H1: c/o | I1: Time | J1: Final Time | K1: Placing | L1: Money Earned
E2: 1 | F2: Cierra Chapman | G2: Wood B A Babe | I2: 16.331 | K2: 1D 1st | L2: 130
E3: 2 | F3: Tana Renick | G3: Justanuthr Famouswon | I3: 16.475 | K3: 1D 2nd | L3: 78
E4: 3 | F4: Lydia Butler | G4: Beduino N Fire Water | I4: 16.718
E5: 4 | F5: Phillip Kenyon | G5: Make It a Mojito | I5: 16.961
E6: 5 | F6: Danyelle Campbell | G6: Rockin My Fame | I6: 17.028
E7: 6 | F7: Jaylan Neatherlin | G7: Happy Dayz | I7: 17.055
E8: 7 | F8: Rive rRiver Stuckey | G8: Unshakable Kingdom | I8: 17.068
E9: 8 | F9: Danyelle Campbell | G9: Dirty Money | I9: 17.11
E10: 9 | F10: Pattie Mackie | G10: Frosty Six Moons | I10: 17.236
E11: 10 | F11: Reiney Lucas | G11: DHR Request A Rocket | I11: 18.427 | K11: 2D 1st | L11: 52
E12: 11 | F12: Lauren Whitmire | G12: Down Dash Anytime | I12: nt
E13: 12 | F13: Tana Renick | G13: La Jolla Boondox | I13: nt16.605
E14: 13 | F14: Kelly Valdez | G14: Sixes Fling | I14: nt16.678
E15: 14
E16: 15
E17: 16
E18: 17
E19: 18
E20: 19
E21: 20
E22: 21
E23: 22
E24: 23
E25: 24
E26: 25
E27: 26
E28: 27
E29: 28
E30: 29
E31: 30
E32: 31 | J32: =IF(OR(H32=5,H32=10, H32=15, H32="BP",H32="SCR"),"NT",I32) -> 0
E33: 32 | J33: 0
E34: 33 | J34: 0
E35: 34 | J35: 0
E36: 35 | J36: 0
E37: 36 | J37: 0
E38: 37 | J38: 0
E39: 38 | J39: 0
E40: 39 | J40: 0
E41: 40 | J41: 0
E42: 41 | J42: 0
E43: 42 | J43: 0
E44: 43 | J44: 0
E45: 44 | J45: 0
E46: 45 | J46: 0
E47: 46 | J47: 0
E48: 47 | J48: 0
E49: 48 | J49: 0
E50: 49 | J50: 0
E51: 50 | J51: 0
E52: 51 | J52: 0
E53: 52 | J53: 0
E54: 53 | J54: 0
E55: 54 | J55: 0
E56: 55 | J56: 0
E57: 56 | J57: 0
E58: 57 | J58: 0
E59: 58 | J59: 0
E60: 59 | J60: 0
E61: 60 | J61: 0
E62: 61 | J62: 0
E63: 62 | J63: 0
E64: 63 | J64: 0
E65: 64 | J65: 0
E66: 65 | J66: 0
E67: 66 | J67: 0
E68: 67 | J68: 0
E69: 68 | J69: 0
E70: 69 | J70: 0
E71: 70 | J71: 0
E72: 71 | J72: 0
E73: 72 | J73: 0
E74: 73 | J74: 0
E75: 74 | J75: 0
E76: 75 | J76: 0
E77: 76 | J77: 0
E78: 77 | J78: 0
E79: 78 | J79: 0
E80: 79 | J80: 0
E81: 80 | J81: 0
E82: 81 | J82: 0
E83: 82 | J83: 0
E84: 83 | J84: 0
E85: 84 | J85: 0
E86: 85 | J86: 0
E87: 86 | J87: 0
E88: 87 | J88: 0
E89: 88 | J89: 0
E90: 89 | J90: 0
E91: 90 | J91: 0
E92: 91 | J92: 0
E93: 92 | J93: 0
E94: 93 | J94: 0
E95: 94 | J95: 0
E96: 95 | J96: =IF(OR(H96=5,H96=10, H96=15, H96="BP",H96="SCR"),"NT",I96) -> 0
E97: 96 | J97: 0
E98: 97 | J98: 0
E99: 98 | J99: 0
E100: 99 | J100: 0
E101: 100 | J101: 0
E102: 101 | J102: 0
E103: 102 | J103: 0
E104: 103 | J104: 0
E105: 104 | J105: 0
E106: 105 | J106: 0
E107: 106 | J107: 0
E108: 107 | J108: 0
E109: 108 | J109: 0
E110: 109 | J110: 0
E111: 110 | J111: 0
E112: 111 | J112: 0
E113: 112 | J113: 0
E114: 113 | J114: 0
E115: 114 | J115: 0
E116: 115 | J116: 0
E117: 116 | J117: 0
E118: 117 | J118: 0
E119: 118 | J119: 0
E120: 119 | J120: 0
E121: 120 | J121: 0
E122: 121 | J122: 0
E123: 122 | J123: 0
E124: 123 | J124: 0
E125: 124 | J125: 0
E126: 125 | J126: 0
E127: 126 | J127: 0
E128: 127 | J128: 0
E129: 128 | J129: 0
E130: 129 | J130: 0
E131: 130 | J131: 0
E132: 131 | J132: 0
E133: 132 | J133: 0
E134: 133 | J134: 0
E135: 134 | J135: 0
E136: 135 | J136: 0
E137: 136 | J137: 0
E138: 137 | J138: 0
E139: 138 | J139: 0
E140: 139 | J140: 0
E141: 140 | J141: 0
E142: 141 | J142: 0
E143: 142 | J143: 0
E144: 143 | J144: 0
E145: 144 | J145: 0
E146: 145 | J146: 0
E147: 146 | J147: 0
E148: 147 | J148: 0
E149: 148 | J149: 0
E150: 149 | J150: 0
E151: 150 | J151: 0
E152: 151 | J152: 0
E153: 152 | J153: 0
E154: 153 | J154: 0
E155: 154 | J155: 0
E156: 155 | J156: 0
E157: 156 | J157: 0
E158: 157 | J158: 0
E159: 158 | J159: 0
E160: 159 | J160: =IF(OR(H160=5,H160=10, H160=15, H160="BP",H160="SCR"),"NT",I160) -> 0
E161: 160 | J161: 0
E162: 161 | J162: 0
E163: 162 | J163: 0
E164: 163 | J164: 0
E165: 164 | J165: 0
E166: 165 | J166: 0
E167: 166 | J167: 0
E168: 167 | J168: 0
E169: 168 | J169: 0
E170: 169 | J170: 0
E171: 170 | J171: 0
E172: 171 | J172: 0
E173: 172 | J173: 0
E174: 173 | J174: 0
E175: 174 | J175: 0
E176: 175 | J176: 0
E177: 176 | J177: 0
E178: 177 | J178: 0
E179: 178 | J179: 0
E180: 179 | J180: 0
E181: 180 | J181: 0
E182: 181 | J182: 0
E183: 182 | J183: 0
E184: 183 | J184: 0
E185: 184 | J185: 0
E186: 185 | J186: 0
E187: 186 | J187: 0
E188: 187 | J188: 0
E189: 188 | J189: 0
E190: 189 | J190: 0
E191: 190 | J191: 0
E192: 191 | J192: 0
E193: 192 | J193: 0
E194: 193 | J194: 0
E195: 194 | J195: 0
E196: 195 | J196: 0
E197: 196 | J197: 0
E198: 197 | J198: 0
E199: 198 | J199: 0
E200: 199 | J200: 0
... 101 more rows

Sheet 12 & Under (hidden)
A1: Futurity | B1: Der | C1: Age Inct. | D1: R/O | E1: Draw | F1: Rider Name | G1: Horse Name | H1: Time | I1: Final Time | J1: Placing | K1: Money Earned
E33: 32
E34: 33
E35: 34
E36: 35
E37: 36
E38: 37
E39: 38
E40: 39
E41: 40
E42: 41
E43: 42
E44: 43
E45: 44
E46: 45
E47: 46
E48: 47
E49: 48
E50: 49
E51: 50
E52: 51
E53: 52
E54: 53
E55: 54
E56: 55
E57: 56
E58: 57
E59: 58
E60: 59
E61: 60
E62: 61
E63: 62
E64: 63
E65: 64
E66: 65
E67: 66
E68: 67
E69: 68
E70: 69
E71: 70
E72: 71
E73: 72
E74: 73
E75: 74
E76: 75
E77: 76
E78: 77
E79: 78
E80: 79
E81: 80
E82: 81
E83: 82
E84: 83
E85: 84
E86: 85
E87: 86
E88: 87
E89: 88
E90: 89
E91: 90
E92: 91
E93: 92
E94: 93
E95: 94
E96: 95
E97: 96
E98: 97
E99: 98
E100: 99
E101: 100
E102: 101
E103: 102
E104: 103
E105: 104
E106: 105
E107: 106
E108: 107
E109: 108
E110: 109
E111: 110
E112: 111
E113: 112
E114: 113
E115: 114
E116: 115
E117: 116
E118: 117
E119: 118
E120: 119
E121: 120
E122: 121
E123: 122
E124: 123
E125: 124
E126: 125
E127: 126
E128: 127
E129: 128
E130: 129
E131: 130
E132: 131
E133: 132
E134: 133
E135: 134
E136: 135
E137: 136
E138: 137
E139: 138
E140: 139
E141: 140
E142: 141
E143: 142
E144: 143
E145: 144
E146: 145
E147: 146
E148: 147
E149: 148
E150: 149
E151: 150
E152: 151
E153: 152
E154: 153
E155: 154
E156: 155
E157: 156
E158: 157
E159: 158
E160: 159
E161: 160
E162: 161
E163: 162
E164: 163
E165: 164
E166: 165
E167: 166
E168: 167
E169: 168
E170: 169
E171: 170
E172: 171
E173: 172
E174: 173
E175: 174
E176: 175
E177: 176
E178: 177
E179: 178
E180: 179
E181: 180
E182: 181
E183: 182
E184: 183
E185: 184
E186: 185
E187: 186
E188: 187
E189: 188
E190: 189
E191: 190
E192: 191
E193: 192
E194: 193
E195: 194
E196: 195
E197: 196
E198: 197
E199: 198
E200: 199
E201: 200
E202: 201
E203: 202
E204: 203
E205: 204
E206: 205
E207: 206
E208: 207
E209: 208
E210: 209
E211: 210
E212: 211
E213: 212
E214: 213
E215: 214
E216: 215
E217: 216
E218: 217
E219: 218
E220: 219
E221: 220
E222: 221
E223: 222
E224: 223
E225: 224
E226: 225
E227: 226
E228: 227
E229: 228
E230: 229
E231: 230
... 70 more rows

Sheet 8&under
A1: Draw | B1: Rider Name | C1: Horse Name | D1: Pen | E1: Time | F1: Final Time | G1: Placing | H1: Money Earned
A2: 1 | B2: Avery Childers | C2: Rocky
A3: 2 | B3: Cooper Peek | C3: Dolly
A4: 3 | B4: Chico Fenoglio
A5: 4 | B5: Brinley Howard | C5: Virginia
A6: 5
A7: 6
A8: 7
A9: 8
A10: 9
A11: 10 | F11: =IF(OR(D11=5,D11=10, D11=15, D11="BP",D11="SCR"),"NT",E11) -> 0
A12: 11 | F12: 0
A13: 12 | F13: 0
A14: 13 | F14: 0
A15: 14 | F15: 0
A16: 15 | F16: 0
A17: 16 | F17: 0
A18: 17 | F18: 0
A19: 18 | F19: 0
A20: 19 | F20: 0
A21: 20 | F21: 0

Sheet Average
A1: Parker County Arena
A2: Open
A3: 4 Yr Fut | B3: 5 Yr Fut | C3: Der | D3: Age Inct. | E3: Am | F3: Carry | G3: T/C | H3: F/F | I3: Mem | J3: Nom | K3: Av | L3: BBR | M3: WPRA | N3: Draw | O3: Owner Name | P3: Rider Name | Q3: Horse Name | R3: Pen | S3: Time 1 | T3: Final Time 1 | U3: Pen | V3: Time 2 | W3: Final Time 2 | X3: Total Time | Y3: Average Time | Z3: Placing | AA3: Money Earned | AC3: D Placing | AE3: Split
N4: 1 | T4: =IF(OR(R4=5,R4=10, R4=15, R4="BP",R4="SCR"),"NT",S4) -> 0 | W4: =IF(OR(U4=5,U4=10, U4=15, U4="BP",U4="SCR"),"NT",V4) -> 0 | X4: =(T4+W4) -> 0 | Y4: =(T4+W4)/2 -> 0 | AC4: 1D
N5: 2 | T5: 0 | W5: 0 | X5: 0 | Y5: 0 | AC5: 2D | AD5: =$AD$4+$AE$5 -> 0.5 | AE5: 0.5
N6: 3 | T6: 0 | W6: 0 | X6: 0 | Y6: 0 | AC6: 3D | AD6: =$AD$5+$AE$6 -> 1 | AE6: 0.5
N7: 4 | T7: 0 | W7: 0 | X7: 0 | Y7: 0 | AC7: 4D | AD7: =$AD$6+$AE$7 -> 1.5 | AE7: 0.5
N8: 5 | T8: 0 | W8: 0 | X8: 0 | Y8: 0 | AC8: 5D | AD8: =$AD$7+$AE$8 -> 2 | AE8: 0.5
N9: 6 | T9: 0 | W9: 0 | X9: 0 | Y9: 0
N10: 7 | T10: 0 | W10: 0 | X10: 0 | Y10: 0 | AC10: # Entered
N11: 8 | T11: 0 | W11: 0 | X11: 0 | Y11: 0 | AC11: =COUNTA(P4:P503) -> 0
N12: 9 | T12: 0 | W12: 0 | X12: 0 | Y12: 0
N13: 10 | T13: 0 | W13: 0 | X13: 0 | Y13: 0
N14: 11 | T14: 0 | W14: 0 | X14: 0 | Y14: 0
N15: 12 | T15: 0 | W15: 0 | X15: 0 | Y15: 0
N16: 13 | T16: 0 | W16: 0 | X16: 0 | Y16: 0
N17: 14 | T17: =IF(OR(R17=5,R17=10, R17=15, R17="BP",R17="SCR"),"NT",S17) -> 0 | W17: =IF(OR(U17=5,U17=10, U17=15, U17="BP",U17="SCR"),"NT",V17) -> 0 | X17: =(T17+W17) -> 0 | Y17: =(T17+W17)/2 -> 0
N18: 15 | T18: 0 | W18: 0 | X18: 0 | Y18: 0
N19: 16 | T19: 0 | W19: 0 | X19: 0 | Y19: 0
N20: 17 | T20: 0 | W20: 0 | X20: 0 | Y20: 0
N21: 18 | T21: 0 | W21: 0 | X21: 0 | Y21: 0
N22: 19 | T22: 0 | W22: 0 | X22: 0 | Y22: 0
N23: 20 | T23: 0 | W23: 0 | X23: 0 | Y23: 0
N24: 21 | T24: 0 | W24: 0 | X24: 0 | Y24: 0
N25: 22 | T25: 0 | W25: 0 | X25: 0 | Y25: 0
N26: 23 | T26: 0 | W26: 0 | X26: 0 | Y26: 0
N27: 24 | T27: 0 | W27: 0 | X27: 0 | Y27: 0
N28: 25 | T28: 0 | W28: 0 | X28: 0 | Y28: 0
N29: 26 | T29: 0 | W29: 0 | X29: 0 | Y29: 0
N30: 27 | T30: 0 | W30: 0 | X30: 0 | Y30: 0
N31: 28 | T31: 0 | W31: 0 | X31: 0 | Y31: 0
N32: 29 | T32: 0 | W32: 0 | X32: 0 | Y32: 0
N33: 30 | T33: 0 | W33: 0 | X33: 0 | Y33: 0
N34: 31 | T34: 0 | W34: 0 | X34: 0 | Y34: 0
N35: 32 | T35: 0 | W35: 0 | X35: 0 | Y35: 0
N36: 33 | T36: 0 | W36: 0 | X36: 0 | Y36: 0
N37: 34 | T37: 0 | W37: 0 | X37: 0 | Y37: 0
N38: 35 | T38: 0 | W38: 0 | X38: 0 | Y38: 0
N39: 36 | T39: 0 | W39: 0 | X39: 0 | Y39: 0
N40: 37 | T40: 0 | W40: 0 | X40: 0 | Y40: 0
N41: 38 | T41: 0 | W41: 0 | X41: 0 | Y41: 0
N42: 39 | T42: 0 | W42: 0 | X42: 0 | Y42: 0
N43: 40 | T43: 0 | W43: 0 | X43: 0 | Y43: 0
N44: 41 | T44: 0 | W44: 0 | X44: 0 | Y44: 0
N45: 42 | T45: 0 | W45: 0 | X45: 0 | Y45: 0
N46: 43 | T46: 0 | W46: 0 | X46: 0 | Y46: 0
N47: 44 | T47: 0 | W47: 0 | X47: 0 | Y47: 0
N48: 45 | T48: 0 | W48: 0 | X48: 0 | Y48: 0
N49: 46 | T49: 0 | W49: 0 | X49: 0 | Y49: 0
N50: 47 | T50: 0 | W50: 0 | X50: 0 | Y50: 0
N51: 48 | T51: 0 | W51: 0 | X51: 0 | Y51: 0
N52: 49 | T52: 0 | W52: 0 | X52: 0 | Y52: 0
N53: 50 | T53: 0 | W53: 0 | X53: 0 | Y53: 0
N54: 51 | T54: 0 | W54: 0 | X54: 0 | Y54: 0
N55: 52 | T55: 0 | W55: 0 | X55: 0 | Y55: 0
N56: 53 | T56: 0 | W56: 0 | X56: 0 | Y56: 0
N57: 54 | T57: 0 | W57: 0 | X57: 0 | Y57: 0
N58: 55 | T58: 0 | W58: 0 | X58: 0 | Y58: 0
N59: 56 | T59: 0 | W59: 0 | X59: 0 | Y59: 0
N60: 57 | T60: 0 | W60: 0 | X60: 0 | Y60: 0
N61: 58 | T61: 0 | W61: 0 | X61: 0 | Y61: 0
N62: 59 | T62: 0 | W62: 0 | X62: 0 | Y62: 0
N63: 60 | T63: 0 | W63: 0 | X63: 0 | Y63: 0
N64: 61 | T64: 0 | W64: 0 | X64: 0 | Y64: 0
N65: 62 | T65: 0 | W65: 0 | X65: 0 | Y65: 0
N66: 63 | T66: 0 | W66: 0 | X66: 0 | Y66: 0
N67: 64 | T67: 0 | W67: 0 | X67: 0 | Y67: 0
N68: 65 | T68: 0 | W68: 0 | X68: 0 | Y68: 0
N69: 66 | T69: =IF(OR(R69=5,R69=10, R69=15, R69="BP",R69="SCR"),"NT",S69) -> 0 | W69: =IF(OR(U69=5,U69=10, U69=15, U69="BP",U69="SCR"),"NT",V69) -> 0 | X69: =(T69+W69) -> 0 | Y69: =(T69+W69)/2 -> 0
N70: 67 | T70: 0 | W70: 0 | X70: 0 | Y70: 0
N71: 68 | T71: 0 | W71: 0 | X71: 0 | Y71: 0
N72: 69 | T72: 0 | W72: 0 | X72: 0 | Y72: 0
N73: 70 | T73: 0 | W73: 0 | X73: 0 | Y73: 0
N74: 71 | T74: 0 | W74: 0 | X74: 0 | Y74: 0
N75: 72 | T75: 0 | W75: 0 | X75: 0 | Y75: 0
N76: 73 | T76: 0 | W76: 0 | X76: 0 | Y76: 0
N77: 74 | T77: 0 | W77: 0 | X77: 0 | Y77: 0
N78: 75 | T78: 0 | W78: 0 | X78: 0 | Y78: 0
N79: 76 | T79: 0 | W79: 0 | X79: 0 | Y79: 0
N80: 77 | T80: 0 | W80: 0 | X80: 0 | Y80: 0
N81: 78 | T81: 0 | W81: 0 | X81: 0 | Y81: 0
N82: 79 | T82: 0 | W82: 0 | X82: 0 | Y82: 0
N83: 80 | T83: 0 | W83: 0 | X83: 0 | Y83: 0
N84: 81 | T84: 0 | W84: 0 | X84: 0 | Y84: 0
N85: 82 | T85: 0 | W85: 0 | X85: 0 | Y85: 0
N86: 83 | T86: 0 | W86: 0 | X86: 0 | Y86: 0
N87: 84 | T87: 0 | W87: 0 | X87: 0 | Y87: 0
N88: 85 | T88: 0 | W88: 0 | X88: 0 | Y88: 0
N89: 86 | T89: 0 | W89: 0 | X89: 0 | Y89: 0
N90: 87 | T90: 0 | W90: 0 | X90: 0 | Y90: 0
N91: 88 | T91: 0 | W91: 0 | X91: 0 | Y91: 0
N92: 89 | T92: 0 | W92: 0 | X92: 0 | Y92: 0
N93: 90 | T93: 0 | W93: 0 | X93: 0 | Y93: 0
N94: 91 | T94: 0 | W94: 0 | X94: 0 | Y94: 0
N95: 92 | T95: 0 | W95: 0 | X95: 0 | Y95: 0
N96: 93 | T96: 0 | W96: 0 | X96: 0 | Y96: 0
N97: 94 | T97: 0 | W97: 0 | X97: 0 | Y97: 0
N98: 95 | T98: 0 | W98: 0 | X98: 0 | Y98: 0
N99: 96 | T99: 0 | W99: 0 | X99: 0 | Y99: 0
N100: 97 | T100: 0 | W100: 0 | X100: 0 | Y100: 0
N101: 98 | T101: 0 | W101: 0 | X101: 0 | Y101: 0
N102: 99 | T102: 0 | W102: 0 | X102: 0 | Y102: 0
N103: 100 | T103: 0 | W103: 0 | X103: 0 | Y103: 0
N104: 101 | T104: 0 | W104: 0 | X104: 0 | Y104: 0
N105: 102 | T105: 0 | W105: 0 | X105: 0 | Y105: 0
N106: 103 | T106: 0 | W106: 0 | X106: 0 | Y106: 0
N107: 104 | T107: 0 | W107: 0 | X107: 0 | Y107: 0
N108: 105 | T108: 0 | W108: 0 | X108: 0 | Y108: 0
N109: 106 | T109: 0 | W109: 0 | X109: 0 | Y109: 0
N110: 107 | T110: 0 | W110: 0 | X110: 0 | Y110: 0
N111: 108 | T111: 0 | W111: 0 | X111: 0 | Y111: 0
N112: 109 | T112: 0 | W112: 0 | X112: 0 | Y112: 0
N113: 110 | T113: 0 | W113: 0 | X113: 0 | Y113: 0
N114: 111 | T114: 0 | W114: 0 | X114: 0 | Y114: 0
N115: 112 | T115: 0 | W115: 0 | X115: 0 | Y115: 0
N116: 113 | T116: 0 | W116: 0 | X116: 0 | Y116: 0
N117: 114 | T117: 0 | W117: 0 | X117: 0 | Y117: 0
N118: 115 | T118: 0 | W118: 0 | X118: 0 | Y118: 0
N119: 116 | T119: 0 | W119: 0 | X119: 0 | Y119: 0
N120: 117 | T120: 0 | W120: 0 | X120: 0 | Y120: 0
N121: 118 | T121: 0 | W121: 0 | X121: 0 | Y121: 0
N122: 119 | T122: 0 | W122: 0 | X122: 0 | Y122: 0
N123: 120 | T123: 0 | W123: 0 | X123: 0 | Y123: 0
N124: 121 | T124: 0 | W124: 0 | X124: 0 | Y124: 0
N125: 122 | T125: 0 | W125: 0 | X125: 0 | Y125: 0
N126: 123 | T126: 0 | W126: 0 | X126: 0 | Y126: 0
N127: 124 | T127: 0 | W127: 0 | X127: 0 | Y127: 0
N128: 125 | T128: 0 | W128: 0 | X128: 0 | Y128: 0
N129: 126 | T129: 0 | W129: 0 | X129: 0 | Y129: 0
N130: 127 | T130: 0 | W130: 0 | X130: 0 | Y130: 0
N131: 128 | T131: 0 | W131: 0 | X131: 0 | Y131: 0
N132: 129 | T132: 0 | W132: 0 | X132: 0 | Y132: 0
N133: 130 | T133: =IF(OR(R133=5,R133=10, R133=15, R133="BP",R133="SCR"),"NT",S133) -> 0 | W133: =IF(OR(U133=5,U133=10, U133=15, U133="BP",U133="SCR"),"NT",V133) -> 0 | X133: =(T133+W133) -> 0 | Y133: =(T133+W133)/2 -> 0
N134: 131 | T134: 0 | W134: 0 | X134: 0 | Y134: 0
N135: 132 | T135: 0 | W135: 0 | X135: 0 | Y135: 0
N136: 133 | T136: 0 | W136: 0 | X136: 0 | Y136: 0
N137: 134 | T137: 0 | W137: 0 | X137: 0 | Y137: 0
N138: 135 | T138: 0 | W138: 0 | X138: 0 | Y138: 0
N139: 136 | T139: 0 | W139: 0 | X139: 0 | Y139: 0
N140: 137 | T140: 0 | W140: 0 | X140: 0 | Y140: 0
N141: 138 | T141: 0 | W141: 0 | X141: 0 | Y141: 0
N142: 139 | T142: 0 | W142: 0 | X142: 0 | Y142: 0
N143: 140 | T143: 0 | W143: 0 | X143: 0 | Y143: 0
N144: 141 | T144: 0 | W144: 0 | X144: 0 | Y144: 0
N145: 142 | T145: 0 | W145: 0 | X145: 0 | Y145: 0
N146: 143 | T146: 0 | W146: 0 | X146: 0 | Y146: 0
N147: 144 | T147: 0 | W147: 0 | X147: 0 | Y147: 0
N148: 145 | T148: 0 | W148: 0 | X148: 0 | Y148: 0
N149: 146 | T149: 0 | W149: 0 | X149: 0 | Y149: 0
N150: 147 | T150: 0 | W150: 0 | X150: 0 | Y150: 0
N151: 148 | T151: 0 | W151: 0 | X151: 0 | Y151: 0
N152: 149 | T152: 0 | W152: 0 | X152: 0 | Y152: 0
N153: 150 | T153: 0 | W153: 0 | X153: 0 | Y153: 0
N154: 151 | T154: 0 | W154: 0 | X154: 0 | Y154: 0
N155: 152 | T155: 0 | W155: 0 | X155: 0 | Y155: 0
N156: 153 | T156: 0 | W156: 0 | X156: 0 | Y156: 0
N157: 154 | T157: 0 | W157: 0 | X157: 0 | Y157: 0
N158: 155 | T158: 0 | W158: 0 | X158: 0 | Y158: 0
N159: 156 | T159: 0 | W159: 0 | X159: 0 | Y159: 0
N160: 157 | T160: 0 | W160: 0 | X160: 0 | Y160: 0
N161: 158 | T161: 0 | W161: 0 | X161: 0 | Y161: 0
N162: 159 | T162: 0 | W162: 0 | X162: 0 | Y162: 0
N163: 160 | T163: 0 | W163: 0 | X163: 0 | Y163: 0
N164: 161 | T164: 0 | W164: 0 | X164: 0 | Y164: 0
N165: 162 | T165: 0 | W165: 0 | X165: 0 | Y165: 0
N166: 163 | T166: 0 | W166: 0 | X166: 0 | Y166: 0
N167: 164 | T167: 0 | W167: 0 | X167: 0 | Y167: 0
N168: 165 | T168: 0 | W168: 0 | X168: 0 | Y168: 0
N169: 166 | T169: 0 | W169: 0 | X169: 0 | Y169: 0
N170: 167 | T170: 0 | W170: 0 | X170: 0 | Y170: 0
N171: 168 | T171: 0 | W171: 0 | X171: 0 | Y171: 0
N172: 169 | T172: 0 | W172: 0 | X172: 0 | Y172: 0
N173: 170 | T173: 0 | W173: 0 | X173: 0 | Y173: 0
N174: 171 | T174: 0 | W174: 0 | X174: 0 | Y174: 0
N175: 172 | T175: 0 | W175: 0 | X175: 0 | Y175: 0
N176: 173 | T176: 0 | W176: 0 | X176: 0 | Y176: 0
N177: 174 | T177: 0 | W177: 0 | X177: 0 | Y177: 0
N178: 175 | T178: 0 | W178: 0 | X178: 0 | Y178: 0
N179: 176 | T179: 0 | W179: 0 | X179: 0 | Y179: 0
N180: 177 | T180: 0 | W180: 0 | X180: 0 | Y180: 0
N181: 178 | T181: 0 | W181: 0 | X181: 0 | Y181: 0
N182: 179 | T182: 0 | W182: 0 | X182: 0 | Y182: 0
N183: 180 | T183: 0 | W183: 0 | X183: 0 | Y183: 0
N184: 181 | T184: 0 | W184: 0 | X184: 0 | Y184: 0
N185: 182 | T185: 0 | W185: 0 | X185: 0 | Y185: 0
N186: 183 | T186: 0 | W186: 0 | X186: 0 | Y186: 0
N187: 184 | T187: 0 | W187: 0 | X187: 0 | Y187: 0
N188: 185 | T188: 0 | W188: 0 | X188: 0 | Y188: 0
N189: 186 | T189: 0 | W189: 0 | X189: 0 | Y189: 0
N190: 187 | T190: 0 | W190: 0 | X190: 0 | Y190: 0
N191: 188 | T191: 0 | W191: 0 | X191: 0 | Y191: 0
N192: 189 | T192: 0 | W192: 0 | X192: 0 | Y192: 0
N193: 190 | T193: 0 | W193: 0 | X193: 0 | Y193: 0
N194: 191 | T194: 0 | W194: 0 | X194: 0 | Y194: 0
N195: 192 | T195: 0 | W195: 0 | X195: 0 | Y195: 0
N196: 193 | T196: 0 | W196: 0 | X196: 0 | Y196: 0
N197: 194 | T197: =IF(OR(R197=5,R197=10, R197=15, R197="BP",R197="SCR"),"NT",S197) -> 0 | W197: =IF(OR(U197=5,U197=10, U197=15, U197="BP",U197="SCR"),"NT",V197) -> 0 | X197: =(T197+W197) -> 0 | Y197: =(T197+W197)/2 -> 0
N198: 195 | T198: 0 | W198: 0 | X198: 0 | Y198: 0
N199: 196 | T199: 0 | W199: 0 | X199: 0 | Y199: 0
N200: 197 | T200: 0 | W200: 0 | X200: 0 | Y200: 0
... 303 more rows

Sheet BFA 2D Payout (hidden)
A1: BFA 2D Payout
A2: Entry Fee | B2: # Entries | C2: % Payback | D2: Added $ | E2: Total Payout | F2: Each Go
A3: 25 | B3: 19 | C3: 0.8 | D3: 200 | E3: =(A3*$C$3)*B3+D3 -> 580 | F3: 0.3
F4: =$E$3*$F$3 -> 174
A5: $5,000-7,500 Pays 5 Places 4 to 1D 1 to 2D
A6: Placings | B6: 1D | D6: 2D
A7: 1st | B7: =($F$4*$C$7) -> 57.42 | C7: 0.33 | D7: =$F$4*$E$7 -> 12.18 | E7: 0.07
A8: 2nd | B8: =$F$4*$C$8 -> 46.98 | C8: 0.27
A9: 3rd | B9: =$F$4*$C$9 -> 34.8 | C9: 0.2
A10: 4th | B10: =$F$4*$C$10 -> 22.62 | C10: 0.13
A11: Totals | B11: =SUM(B7:B10) -> 161.82 | D11: =SUM(D7:D10) -> 12.18 | E11: =(C7+C8+C9+C10+E7+E8) -> 1
A12: =B11+D11 -> 174
A13: $7,501 - 10,000 Pays 6 Places 4 to 1D, 2 to 2D
A14: Placings | B14: 1D | D14: 2D
A15: 1st | B15: =$F$4*$C$15 -> 50.46 | C15: 0.29 | D15: =$F$4*$E$15 -> 15.66 | E15: 0.09
A16: 2nd | B16: =+$F$4*$C$16 -> 41.76 | C16: 0.24 | D16: =F4*E16 -> 8.7 | E16: 0.05
A17: 3rd | B17: =$F$4*$C$17 -> 33.06 | C17: 0.19
A18: 4th | B18: =$F$4*$C$18 -> 24.36 | C18: 0.14
A19: Totals | B19: =SUM(B15:B18) -> 149.64 | D19: =D16+D15 -> 24.36 | E19: =SUM(C15+C16+C17+C18+E15+E16) -> 1
A20: =D19+B19 -> 174
A21: $10,001 - $15,000 Payes 8 Places 5 to 1D, 3 to 2D
A22: Placings | B22: 1D | D22: 2D
A23: 1st | B23: =F4*C23 -> 41.76 | C23: 0.24 | D23: =F4*E23 -> 12.18 | E23: 0.07
A24: 2nd | B24: =F4*C24 -> 34.8 | C24: 0.2 | D24: =F4*E24 -> 8.7 | E24: 0.05
A25: 3rd | B25: =F4*C25 -> 29.58 | C25: 0.17 | D25: =F4*E25 -> 6.96 | E25: 0.04
A26: 4th | B26: =F4*C26 -> 22.62 | C26: 0.13
A27: 5th | B27: =F4*C27 -> 17.4 | C27: 0.1
A28: Totals | B28: =SUM(B23:B27) -> 146.16 | D28: =SUM(D23:D27) -> 27.84 | E28: =C23+C24+C25+C26+C27+E23+E24+E25 -> 1
A29: =B28+D28 -> 174
A30: $15,001 - $25,000 Payes 11 Places 7 to 1D, 4 to 2D
A31: Placings | B31: 1D | D31: 2D
A32: 1st | B32: =$F$4*C32 -> 36.54 | C32: 0.21 | D32: =$F$4*E32 -> 8.7 | E32: 0.05
A33: 2nd | B33: =$F$4*C33 -> 31.32 | C33: 0.18 | D33: =$F$4*E33 -> 6.96 | E33: 0.04
A34: 3rd | B34: 26.1 | C34: 0.15 | D34: 5.22 | E34: 0.03
A35: 4th | B35: 19.14 | C35: 0.11 | D35: 3.48 | E35: 0.02
A36: 5th | B36: 13.92 | C36: 0.08
A37: 6th | B37: 12.18 | C37: 0.07
A38: 7th | B38: 10.44 | C38: 0.06
A39: Totals | B39: =SUM(B32:B38) -> 149.64 | D39: =SUM(D32:D38) -> 24.36 | E39: =C32+C33+C34+C35+C36+C37+C38+E32+E33+E34+E35 -> 1
A40: =SUM(B39+D39) -> 174
A41: $25,001 - $35,000 Payes 12 Places 8 to 1D, 4 to 2D
A42: Placings | B42: 1D | D42: 2D
A43: 1st | B43: =$F$4*C43 -> 33.06 | C43: 0.19 | D43: =$F$4*E43 -> 8.7 | E43: 0.05
A44: 2nd | B44: =$F$4*C44 -> 26.1 | C44: 0.15 | D44: =$F$4*E44 -> 6.96 | E44: 0.04
A45: 3rd | B45: 20.88 | C45: 0.12 | D45: 5.22 | E45: 0.03
A46: 4th | B46: 17.4 | C46: 0.1 | D46: 3.48 | E46: 0.02
A47: 5th | B47: 15.66 | C47: 0.09
A48: 6th | B48: 13.92 | C48: 0.08
A49: 7th | B49: 12.18 | C49: 0.07
A50: 8th | B50: 10.44 | C50: 0.06
A51: Totals | B51: =SUM(B43:B50) -> 149.64 | D51: =SUM(D43:D46) -> 24.36 | E51: =C43+C44+C45+C46+C47+C48+C49+C50+E43+E44+E45+E46 -> 1
A52: =D51+B51 -> 174

Sheet 2D Payout
A1: 2D Payout
A2: Entry Fee | B2: # Entries | C2: % Payback | D2: Added $ | E2: Total Payout
A3: 25 | B3: 13 | C3: 0.8 | D3: 0 | E3: =(A3*$C$3)*B3+D3 -> 260
A5: % in each D | B5: 0.7 | C5: 0.3 | D5: Total % = | E5: =SUM(B5:C5) -> 1
B6: 1D | C6: 2D
B7: =(($A$3*$B$3*$C$3*$B$5)+($D$3*$B$5)) -> 182 | C7: =(($A$3*$B$3*$C$3*$C$5)+($D$3*$C$5)) -> 78
A8: Totals | B8: =SUM(B7) -> 182 | C8: =SUM(C7) -> 78 | D8: =SUM(B8:C8) -> 260
A10: For 1-7 riders 1 place
A11: Placings | B11: 1D | C11: 2D
A12: 1st | B12: =$B$7*$E$12 -> 182 | C12: =$C$7*$E$5 -> 78 | D12: è | E12: 1
A13: Totals | B13: =SUM(B12:B12) -> 182 | C13: =SUM(C12:C12) -> 78 | D13: =SUM(B13:C13) -> 260 | E13: =SUM(E12) -> 1
A15: For 8-11 riders 2 places
A16: Placings | B16: 1D | C16: 2D
A17: 1st | B17: =$B$7*$E$17 -> 109.2 | C17: =$C$7*$E$17 -> 46.8 | D17: è | E17: 0.6
A18: 2nd | B18: =$B$7*$E$18 -> 72.8 | C18: =$C$7*$E$18 -> 31.2 | D18: è | E18: 0.4
A19: Totals | B19: =SUM(B17:B18) -> 182 | C19: =SUM(C17:C18) -> 78 | D19: =SUM(B19:C19) -> 260 | E19: =SUM(E17:E18) -> 1
A21: For 12-15 riders 3 places
A22: Placings | B22: 1D | C22: 2D
A23: 1st | B23: =$B$7*$E$23 -> 91 | C23: =$C$7*$E$23 -> 39 | D23: è | E23: 0.5
A24: 2nd | B24: =$B$7*$E$24 -> 54.6 | C24: =$C$7*$E$24 -> 23.4 | D24: è | E24: 0.3
A25: 3rd | B25: =$B$7*$E$25 -> 36.4 | C25: =$C$7*$E$25 -> 15.6 | D25: è | E25: 0.2
A26: Totals | B26: =SUM(B23:B25) -> 182 | C26: =SUM(C23:C25) -> 78 | D26: =SUM(B26:C26) -> 260 | E26: =SUM(E23:E25) -> 1
A28: For 16-19 riders 4 places
A29: Placings | B29: 1D | C29: 2D
A30: 1st | B30: =$B$7*$E$30 -> 72.8 | C30: =$C$7*$E$30 -> 31.2 | D30: è | E30: 0.4
A31: 2nd | B31: =$B$7*$E$31 -> 54.6 | C31: =$C$7*$E$31 -> 23.4 | D31: è | E31: 0.3
A32: 3rd | B32: =$B$7*$E$32 -> 36.4 | C32: =$C$7*$E$32 -> 15.6 | D32: è | E32: 0.2
A33: 4th | B33: =$B$7*$E$33 -> 18.2 | C33: =$C$7*$E$33 -> 7.8 | D33: è | E33: 0.1
A34: Totals | B34: =SUM(B30:B33) -> 182 | C34: =SUM(C30:C33) -> 78 | D34: =SUM(B34:C34) -> 260 | E34: =SUM(E30:E33) -> 1
A36: For 20-23 riders 5 places
A37: Placings | B37: 1D | C37: 2D
A38: 1st | B38: =$B$7*$E$38 -> 54.6 | C38: =$C$7*$E$38 -> 23.4 | D38: è | E38: 0.3
A39: 2nd | B39: =$B$7*$E$39 -> 45.5 | C39: =$C$7*$E$39 -> 19.5 | D39: è | E39: 0.25
A40: 3rd | B40: =$B$7*$E$40 -> 36.4 | C40: =$C$7*$E$40 -> 15.6 | D40: è | E40: 0.2
A41: 4th | B41: =$B$7*$E$41 -> 27.3 | C41: =$C$7*$E$41 -> 11.7 | D41: è | E41: 0.15
A42: 5th | B42: =$B$7*$E$42 -> 18.2 | C42: =$C$7*$E$42 -> 7.8 | D42: è | E42: 0.1
A43: Totals | B43: =SUM(B38:B42) -> 182 | C43: =SUM(C38:C42) -> 78 | D43: =SUM(B43:C43) -> 260 | E43: =SUM(E38:E42) -> 1
A45: For 24-27 riders 6 places
A46: Placings | B46: 1D | C46: 2D
A47: 1st | B47: =$B$7*$E$47 -> 45.5 | C47: =$C$7*$E$47 -> 19.5 | D47: è | E47: 0.25
A48: 2nd | B48: =$B$7*$E$48 -> 36.4 | C48: =$C$7*$E$48 -> 15.6 | D48: è | E48: 0.2
A49: 3rd | B49: =$B$7*$E$49 -> 32.76 | C49: =$C$7*$E$49 -> 14.04 | D49: è | E49: 0.18
A50: 4th | B50: =$B$7*$E$50 -> 27.3 | C50: =$C$7*$E$50 -> 11.7 | D50: è | E50: 0.15
A51: 5th | B51: =$B$7*$E$51 -> 21.84 | C51: =$C$7*$E$51 -> 9.36 | D51: è | E51: 0.12
A52: 6th | B52: =$B$7*$E$52 -> 18.2 | C52: =$C$7*$E$52 -> 7.8 | D52: è | E52: 0.1
A53: Totals | B53: =SUM(B47:B52) -> 182 | C53: =SUM(C47:C52) -> 78 | D53: =SUM(B53:C53) -> 260 | E53: =SUM(E47:E52) -> 1
A55: For 28-31 riders 7 places
A56: Placings | B56: 1D | C56: 2D
A57: 1st | B57: =$B$7*$E$57 -> 40.04 | C57: =$C$7*$E$57 -> 17.16 | D57: è | E57: 0.22
A58: 2nd | B58: =$B$7*$E$58 -> 32.76 | C58: =$C$7*$E$58 -> 14.04 | D58: è | E58: 0.18
A59: 3rd | B59: =$B$7*$E$59 -> 29.12 | C59: =$C$7*$E$59 -> 12.48 | D59: è | E59: 0.16
A60: 4th | B60: =$B$7*$E$60 -> 25.48 | C60: =$C$7*$E$60 -> 10.92 | D60: è | E60: 0.14
A61: 5th | B61: =$B$7*$E$61 -> 21.84 | C61: =$C$7*$E$61 -> 9.36 | D61: è | E61: 0.12
A62: 6th | B62: =$B$7*$E$62 -> 18.2 | C62: =$C$7*$E$62 -> 7.8 | D62: è | E62: 0.1
A63: 7th | B63: =$B$7*$E$63 -> 14.56 | C63: =$C$7*$E$63 -> 6.24 | D63: è | E63: 0.08
A64: Totals | B64: =SUM(B57:B63) -> 182 | C64: =SUM(C57:C63) -> 78 | D64: =SUM(B64:C64) -> 260 | E64: =SUM(E57:E63) -> 1
A66: For 32 or more riders 8 places
A67: Placings | B67: 1D | C67: 2D
A68: 1st | B68: =$B$7*$E$68 -> 41.86 | C68: =$C$7*$E$68 -> 17.94 | D68: è | E68: 0.23
A69: 2nd | B69: =$B$7*$E$69 -> 36.4 | C69: =$C$7*$E$69 -> 15.6 | D69: è | E69: 0.2
A70: 3rd | B70: =$B$7*$E$70 -> 30.94 | C70: =$C$7*$E$70 -> 13.26 | D70: è | E70: 0.17
A71: 4th | B71: =$B$7*$E$71 -> 25.48 | C71: =$C$7*$E$71 -> 10.92 | D71: è | E71: 0.14
A72: 5th | B72: =$B$7*$E$72 -> 20.02 | C72: =$C$7*$E$72 -> 8.58 | D72: è | E72: 0.11
A73: 6th | B73: =$B$7*$E$73 -> 14.56 | C73: =$C$7*$E$73 -> 6.24 | D73: è | E73: 0.08
A74: 7th | B74: =$B$7*$E$74 -> 9.1 | C74: =$C$7*$E$74 -> 3.9 | D74: è | E74: 0.05
A75: 8th | B75: =$B$7*$E$75 -> 3.64 | C75: =$C$7*$E$75 -> 1.56 | D75: è | E75: 0.02
A76: Totals | B76: =SUM(B68:B75) -> 182 | C76: =SUM(C68:C75) -> 78 | D76: =SUM(B76:C76) -> 260 | E76: =SUM(E68:E75) -> 1

Sheet 3D Payout (hidden)
A1: 3D Payout
A2: Entry Fee | B2: # Entries | C2: % Payback | D2: $ From Entry | E2: Added $ | F2: Total Payout
A3: 10 | B3: 3 | C3: 0.8 | D3: =$A$3*$C$3*$B$3 -> 24 | F3: =$D$3+$E$3 -> 24
A5: % in each D | B5: 0.5 | C5: 0.3 | D5: 0.2 | E5: Total % = | F5: =SUM(B5:D5) -> 1
B6: 1D | C6: 2D | D6: 3D
B7: =(($A$3*$B$3*$C$3*$B$5)+($E$3*$B$5)) -> 12 | C7: =(($A$3*$B$3*$C$3*$C$5)+($E$3*$C$5)) -> 7.2 | D7: =(($A$3*$B$3*$C$3*$D$5)+($E$3*$D$5)) -> 4.8
A8: Totals | B8: =SUM(B7) -> 12 | C8: =SUM(C7) -> 7.2 | D8: 4.8 | E8: =SUM(B8:D8) -> 24
A10: For 1-10 riders 1 place
A11: Placings | B11: 1D | C11: 2D | D11: 3D
A12: 1st | B12: =$B$7*$F$12 -> 12 | C12: =$C$7*$F$12 -> 7.2 | D12: =$D$7*$F$12 -> 4.8 | E12: è | F12: 1
A13: Totals | B13: =SUM(B12:B12) -> 12 | C13: =SUM(C12:C12) -> 7.2 | D13: =SUM(D12:D12) -> 4.8 | E13: =SUM(B13:D13) -> 24 | F13: =SUM(F12) -> 1
A15: For 11-15 riders 2 places
A16: Placings | B16: 1D | C16: 2D | D16: 3D
A17: 1st | B17: =$B$7*$F$17 -> 7.2 | C17: =$C$7*$F$17 -> 4.32 | D17: =$D$7*$F$17 -> 2.88 | E17: è | F17: 0.6
A18: 2nd | B18: =$B$7*$F$18 -> 4.8 | C18: =$C$7*$F$18 -> 2.88 | D18: =$D$7*$F$18 -> 1.92 | E18: è | F18: 0.4
A19: Totals | B19: =SUM(B17:B18) -> 12 | C19: =SUM(C17:C18) -> 7.2 | D19: =SUM(D17:D18) -> 4.8 | E19: =SUM(B19:D19) -> 24 | F19: =SUM(F17:F18) -> 1
A21: For 16-30 riders 3 places
A22: Placings | B22: 1D | C22: 2D | D22: 3D
A23: 1st | B23: =$B$7*$F$23 -> 6 | C23: =$C$7*$F$23 -> 3.6 | D23: =$D$7*$F$23 -> 2.4 | E23: è | F23: 0.5
A24: 2nd | B24: =$B$7*$F$24 -> 3.6 | C24: =$C$7*$F$24 -> 2.16 | D24: =$D$7*$F$24 -> 1.44 | E24: è | F24: 0.3
A25: 3rd | B25: =$B$7*$F$25 -> 2.4 | C25: =$C$7*$F$25 -> 1.44 | D25: =$D$7*$F$25 -> 0.96 | E25: è | F25: 0.2
A26: Totals | B26: =SUM(B23:B25) -> 12 | C26: =SUM(C23:C25) -> 7.2 | D26: =SUM(D22:D25) -> 4.8 | E26: =SUM(B26:D26) -> 24 | F26: =SUM(F23:F25) -> 1
A28: For 31-60 riders 4 places
A29: Placings | B29: 1D | C29: 2D | D29: 3D
A30: 1st | B30: =$B$7*$F$30 -> 5.04 | C30: =$C$7*$F$30 -> 3.024 | D30: =$D$7*$F$30 -> 2.016 | E30: è | F30: 0.42
A31: 2nd | B31: =$B$7*$F$31 -> 3.48 | C31: =$C$7*$F$31 -> 2.088 | D31: =$D$7*$F$31 -> 1.392 | E31: è | F31: 0.29
A32: 3rd | B32: =$B$7*$F$32 -> 2.28 | C32: =$C$7*$F$32 -> 1.368 | D32: =$D$7*$F$32 -> 0.912 | E32: è | F32: 0.19
A33: 4th | B33: =$B$7*$F$33 -> 1.2 | C33: =$C$7*$F$33 -> 0.72 | D33: =$D$7*$F$33 -> 0.48 | E33: è | F33: 0.1
A34: Totals | B34: =SUM(B30:B33) -> 12 | C34: =SUM(C30:C33) -> 7.2 | D34: =SUM(D30:D33) -> 4.8 | E34: =SUM(B34:D34) -> 24 | F34: =SUM(F30:F33) -> 1
A36: For 61-90 riders 5 places
A37: Placings | B37: 1D | C37: 2D | D37: 3D
A38: 1st | B38: =$B$7*$F$38 -> 4.56 | C38: =$C$7*$F$38 -> 2.736 | D38: =$D$7*$F$38 -> 1.824 | E38: è | F38: 0.38
A39: 2nd | B39: =$B$7*$F$39 -> 3.36 | C39: =$C$7*$F$39 -> 2.016 | D39: =$D$7*$F$39 -> 1.344 | E39: è | F39: 0.28
A40: 3rd | B40: =$B$7*$F$40 -> 2.16 | C40: =$C$7*$F$40 -> 1.296 | D40: =$D$7*$F$40 -> 0.864 | E40: è | F40: 0.18
A41: 4th | B41: =$B$7*$F$41 -> 1.2 | C41: =$C$7*$F$41 -> 0.72 | D41: =$D$7*$F$41 -> 0.48 | E41: è | F41: 0.1
A42: 5th | B42: =$B$7*$F$42 -> 0.72 | C42: =$C$7*$F$42 -> 0.432 | D42: =$D$7*$F$42 -> 0.288 | E42: è | F42: 0.06
A43: Totals | B43: =SUM(B38:B42) -> 12 | C43: =SUM(C38:C42) -> 7.2 | D43: =SUM(D38:D42) -> 4.8 | E43: =SUM(B43:D43) -> 24 | F43: =SUM(F38:F42) -> 1
A45: For 91-120 riders 6 places
A46: Placings | B46: 1D | C46: 2D | D46: 3D
A47: 1st | B47: =$B$7*$F$47 -> 4.32 | C47: =$C$7*$F$47 -> 2.592 | D47: =$D$7*$F$47 -> 1.728 | E47: è | F47: 0.36
A48: 2nd | B48: =$B$7*$F$48 -> 3.12 | C48: =$C$7*$F$48 -> 1.872 | D48: =$D$7*$F$48 -> 1.248 | E48: è | F48: 0.26
A49: 3rd | B49: =$B$7*$F$49 -> 1.92 | C49: =$C$7*$F$49 -> 1.152 | D49: =$D$7*$F$49 -> 0.768 | E49: è | F49: 0.16
A50: 4th | B50: =$B$7*$F$50 -> 1.2 | C50: =$C$7*$F$50 -> 0.72 | D50: =$D$7*$F$50 -> 0.48 | E50: è | F50: 0.1
A51: 5th | B51: =$B$7*$F$51 -> 0.84 | C51: =$C$7*$F$51 -> 0.504 | D51: =$D$7*$F$51 -> 0.336 | E51: è | F51: 0.07
A52: 6th | B52: =$B$7*$F$52 -> 0.6 | C52: =$C$7*$F$52 -> 0.36 | D52: =$D$7*$F$52 -> 0.24 | E52: è | F52: 0.05
A53: Totals | B53: =SUM(B47:B52) -> 12 | C53: =SUM(C47:C52) -> 7.2 | D53: =SUM(D47:D52) -> 4.8 | E53: =SUM(B53:D53) -> 24 | F53: =SUM(F47:F52) -> 1
A55: For 121-200 riders 7 places
A56: Placings | B56: 1D | C56: 2D | D56: 3D
A57: 1st | B57: =$B$7*$F$57 -> 3.12 | C57: =$C$7*$F$57 -> 1.872 | D57: =$D$7*$F$57 -> 1.248 | E57: è | F57: 0.26
A58: 2nd | B58: =$B$7*$F$58 -> 2.4 | C58: =$C$7*$F$58 -> 1.44 | D58: =$D$7*$F$58 -> 0.96 | E58: è | F58: 0.2
A59: 3rd | B59: =$B$7*$F$59 -> 1.8 | C59: =$C$7*$F$59 -> 1.08 | D59: =$D$7*$F$59 -> 0.72 | E59: è | F59: 0.15
A60: 4th | B60: =$B$7*$F$60 -> 1.44 | C60: =$C$7*$F$60 -> 0.864 | D60: =$D$7*$F$60 -> 0.576 | E60: è | F60: 0.12
A61: 5th | B61: =$B$7*$F$61 -> 1.2 | C61: =$C$7*$F$61 -> 0.72 | D61: =$D$7*$F$61 -> 0.48 | E61: è | F61: 0.1
A62: 6th | B62: =$B$7*$F$62 -> 1.08 | C62: =$C$7*$F$62 -> 0.648 | D62: =$D$7*$F$62 -> 0.432 | E62: è | F62: 0.09
A63: 7th | B63: =$B$7*$F$63 -> 0.96 | C63: =$C$7*$F$63 -> 0.576 | D63: =$D$7*$F$63 -> 0.384 | E63: è | F63: 0.08
A64: Totals | B64: =SUM(B57:B63) -> 12 | C64: =SUM(C57:C63) -> 7.2 | D64: =SUM(D57:D63) -> 4.8 | E64: =SUM(B64:D64) -> 24 | F64: =SUM(F57:F63) -> 1
A66: For 201 or more riders 8 places
A67: Placings | B67: 1D | C67: 2D | D67: 3D
A68: 1st | B68: =$B$7*0.24 -> 2.88 | C68: =$C$7*0.24 -> 1.728 | D68: =$D$7*0.24 -> 1.152 | E68: è | F68: 0.24
A69: 2nd | B69: =$B$7*0.18 -> 2.16 | C69: =$C$7*0.18 -> 1.296 | D69: =$D$7*0.18 -> 0.864 | E69: è | F69: 0.18
A70: 3rd | B70: =$B$7*0.15 -> 1.8 | C70: =$C$7*0.15 -> 1.08 | D70: =$D$7*0.15 -> 0.72 | E70: è | F70: 0.15
A71: 4th | B71: =$B$7*0.12 -> 1.44 | C71: =$C$7*0.12 -> 0.864 | D71: =$D$7*0.12 -> 0.576 | E71: è | F71: 0.12
A72: 5th | B72: =$B$7*0.1 -> 1.2 | C72: =$C$7*0.1 -> 0.72 | D72: =$D$7*0.1 -> 0.48 | E72: è | F72: 0.1
A73: 6th | B73: =$B$7*0.08 -> 0.96 | C73: =$C$7*0.08 -> 0.576 | D73: =$D$7*0.08 -> 0.384 | E73: è | F73: 0.08
A74: 7th | B74: =$B$7*0.07 -> 0.84 | C74: =$C$7*0.07 -> 0.504 | D74: =$D$7*0.07 -> 0.336 | E74: è | F74: 0.07
A75: 8th | B75: =$B$7*0.06 -> 0.72 | C75: =$C$7*0.06 -> 0.432 | D75: =$D$7*0.06 -> 0.288 | E75: è | F75: 0.06
A76: Totals | B76: =SUM(B68:B75) -> 12 | C76: =SUM(C68:C75) -> 7.2 | D76: =SUM(D68:D75) -> 4.8 | E76: =SUM(B76:D76) -> 24 | F76: =SUM(F68:F75) -> 1

Sheet 4D Payout BBR (hidden)
A1: 4D Payout BBR
A2: Entry Fee | B2: # Entries | C2: % Payback | D2: $ From Entry | E2: Added $ | F2: Total Payout
A3: 40 | B3: 200 | C3: 0.8 | D3: =$A$3*$C$3*$B$3 -> 6400 | E3: 1100 | F3: =($A$3*$C$3)*$B$3+$E$3 -> 7500
A5: % in each D | B5: 0.35 | C5: 0.3 | D5: 0.2 | E5: 0.15 | F5: Total % Payout | G5: =SUM(B5:E5) -> 1
B6: 1D | C6: 2D | D6: 3D | E6: 4D
B7: =(($A$3*$B$3*$C$3*0.35)+($E$3/4)) -> 2515 | C7: =(($A$3*$B$3*$C$3*0.3)+($E$3/4)) -> 2195 | D7: =(($A$3*$B$3*$C$3*0.2)+($E$3/4)) -> 1555 | E7: =(($A$3*$B$3*$C$3*0.15)+($E$3/4)) -> 1235
A8: Totals | B8: =SUM(B7) -> 2515 | C8: =SUM(C7) -> 2195 | D8: 1555 | E8: 1235 | F8: =SUM(B8:E8) -> 7500
A10: For 1-16 riders 1 place
A11: Placings | B11: 1D | C11: 2D | D11: 3D | E11: 4D
A12: 1st | B12: =$B$7*$G$12 -> 2515 | C12: =$C$7*$G$12 -> 2195 | D12: =$D$7*$G$12 -> 1555 | E12: =$E$7*$G$12 -> 1235 | F12: è | G12: 1
A13: Totals | B13: =SUM(B12:B12) -> 2515 | C13: =SUM(C12:C12) -> 2195 | D13: =SUM(D12:D12) -> 1555 | E13: =SUM(E12:E12) -> 1235 | F13: =SUM(B13:E13) -> 7500 | G13: =SUM(G12) -> 1
A15: For 17-33 riders 2 places
A16: Placings | B16: 1D | C16: 2D | D16: 3D | E16: 4D
A17: 1st | B17: =$B$7*$G$17 -> 1509 | C17: =$C$7*$G$17 -> 1317 | D17: =$D$7*$G$17 -> 933 | E17: =$E$7*$G$17 -> 741 | F17: è | G17: 0.6
A18: 2nd | B18: =$B$7*$G$18 -> 1006 | C18: =$C$7*$G$18 -> 878 | D18: =$D$7*$G$18 -> 622 | E18: =$E$7*$G$18 -> 494 | F18: è | G18: 0.4
A19: Totals | B19: =SUM(B17:B18) -> 2515 | C19: =SUM(C17:C18) -> 2195 | D19: =SUM(D17:D18) -> 1555 | E19: =SUM(E17:E18) -> 1235 | F19: =SUM(B19:E19) -> 7500 | G19: =SUM(G17:G18) -> 1
A21: For 34-66 riders 3 places
A22: Placings | B22: 1D | C22: 2D | D22: 3D | E22: 4D
A23: 1st | B23: =$B$7*$G$23 -> 1257.5 | C23: =$C$7*$G$23 -> 1097.5 | D23: =$D$7*$G$23 -> 777.5 | E23: =$E$7*$G$23 -> 617.5 | F23: è | G23: 0.5
A24: 2nd | B24: =$B$7*$G$24 -> 754.5 | C24: =$C$7*$G$24 -> 658.5 | D24: =$D$7*$G$24 -> 466.5 | E24: =$E$7*$G$24 -> 370.5 | F24: è | G24: 0.3
A25: 3rd | B25: =$B$7*$G$25 -> 503 | C25: =$C$7*$G$25 -> 439 | D25: =$D$7*$G$25 -> 311 | E25: =$E$7*$G$25 -> 247 | F25: è | G25: 0.2
A26: Totals | B26: =SUM(B23:B25) -> 2515 | C26: =SUM(C23:C25) -> 2195 | D26: =SUM(D23:D25) -> 1555 | E26: =SUM(E23:E25) -> 1235 | F26: =SUM(B26:E26) -> 7500 | G26: =SUM(G23:G25) -> 1
A28: For 97-95 riders 4 places
A29: Placings | B29: 1D | C29: 2D | D29: 3D | E29: 4D
A30: 1st | B30: =$B$7*$G$30 -> 1006 | C30: =$C$7*$G$30 -> 878 | D30: =$D$7*$G$30 -> 622 | E30: =$E$7*$G$30 -> 494 | F30: è | G30: 0.4
A31: 2nd | B31: =$B$7*$G$31 -> 754.5 | C31: =$C$7*$G$31 -> 658.5 | D31: =$D$7*$G$31 -> 466.5 | E31: =$E$7*$G$31 -> 370.5 | F31: è | G31: 0.3
A32: 3rd | B32: =$B$7*$G$32 -> 503 | C32: =$C$7*$G$32 -> 439 | D32: =$D$7*$G$32 -> 311 | E32: =$E$7*$G$32 -> 247 | F32: è | G32: 0.2
A33: 4th | B33: =$B$7*$G$33 -> 251.5 | C33: =$C$7*$G$33 -> 219.5 | D33: =$D$7*$G$33 -> 155.5 | E33: =$E$7*$G$33 -> 123.5 | F33: è | G33: 0.1
A34: Totals | B34: =SUM(B30:B33) -> 2515 | C34: =SUM(C30:C33) -> 2195 | D34: =SUM(D30:D33) -> 1555 | E34: =SUM(E30:E33) -> 1235 | F34: =SUM(B34:E34) -> 7500 | G34: =SUM(G30:G33) -> 1
A36: For 96-133 riders 5 places
A37: Placings | B37: 1D | C37: 2D | D37: 3D | E37: 4D
A38: 1st | B38: =$B$7*$G$38 -> 829.95 | C38: =$C$7*$G$38 -> 724.35 | D38: =$D$7*G38 -> 513.15 | E38: =$E$7*$G$38 -> 407.55 | F38: è | G38: 0.33
A39: 2nd | B39: =$B$7*$G$39 -> 679.05 | C39: =$C$7*$G$39 -> 592.65 | D39: =$D$7*$G$39 -> 419.85 | E39: =$E$7*$G$39 -> 333.45 | F39: è | G39: 0.27
A40: 3rd | B40: =$B$7*$G$40 -> 503 | C40: =$C$7*$G$40 -> 439 | D40: =$D$7*$G$40 -> 311 | E40: =$E$7*$G$40 -> 247 | F40: è | G40: 0.2
A41: 4th | B41: =$B$7*$G$41 -> 326.95 | C41: =$C$7*$G$41 -> 285.35 | D41: =$D$7*$G$41 -> 202.15 | E41: =$E$7*$G$41 -> 160.55 | F41: è | G41: 0.13
A42: 5th | B42: =$B$7*$G$42 -> 176.05 | C42: =$C$7*$G$42 -> 153.65 | D42: =$D$7*$G$42 -> 108.85 | E42: =$E$7*$G$42 -> 86.45 | F42: è | G42: 0.07
A43: Totals | B43: =SUM(B38:B42) -> 2515 | C43: =SUM(C38:C42) -> 2195 | D43: =SUM(D38:D42) -> 1555 | E43: =SUM(E38:E42) -> 1235 | F43: =SUM(B43:E43) -> 7500 | G43: =SUM(G38:G42) -> 1
A45: For 134-166 riders 6 places
A46: Placings | B46: 1D | C46: 2D | D46: 3D | E46: 4D
A47: 1st | B47: =$B$7*$G$47 -> 729.35 | C47: =$C$7*$G$47 -> 636.55 | D47: =$D$7*$G$47 -> 450.95 | E47: =$E$7*$G$47 -> 358.15 | F47: è | G47: 0.29
A48: 2nd | B48: =$B$7*$G$48 -> 603.6 | C48: =$C$7*$G$48 -> 526.8 | D48: =$D$7*$G$48 -> 373.2 | E48: =$E$7*$G$48 -> 296.4 | F48: è | G48: 0.24
A49: 3rd | B49: =$B$7*$G$49 -> 477.85 | C49: =$C$7*$G$49 -> 417.05 | D49: =$D$7*$G$49 -> 295.45 | E49: =$E$7*$G$49 -> 234.65 | F49: è | G49: 0.19
A50: 4th | B50: =$B$7*$G$50 -> 352.1 | C50: =$C$7*$G$50 -> 307.3 | D50: =$D$7*$G$50 -> 217.7 | E50: =$E$7*$G$50 -> 172.9 | F50: è | G50: 0.14
A51: 5th | B51: =$B$7*$G$51 -> 226.35 | C51: =$C$7*$G$51 -> 197.55 | D51: =$D$7*$G$51 -> 139.95 | E51: =$E$7*$G$51 -> 111.15 | F51: è | G51: 0.09
A52: 6th | B52: =$B$7*$G$52 -> 125.75 | C52: =$C$7*$G$52 -> 109.75 | D52: =$D$7*$G$52 -> 77.75 | E52: =$E$7*$G$52 -> 61.75 | F52: è | G52: 0.05
A53: Totals | B53: =SUM(B47:B52) -> 2515 | C53: =SUM(C47:C52) -> 2195 | D53: =SUM(D47:D52) -> 1555 | E53: =SUM(E47:E52) -> 1235 | F53: =SUM(B53:E53) -> 7500 | G53: =SUM(G47:G52) -> 1
A55: For 167-222 riders 8 places
A56: Placings | B56: 1D | C56: 2D | D56: 3D | E56: 4D
A57: 1st | B57: =$B$7*$G$57 -> 603.6 | C57: =$C$7*$G$57 -> 526.8 | D57: =$D$7*$G$57 -> 373.2 | E57: =$E$7*$G$57 -> 296.4 | F57: è | G57: 0.24
A58: 2nd | B58: =$B$7*$G$58 -> 503 | C58: =$C$7*$G$58 -> 439 | D58: =$D$7*$G$58 -> 311 | E58: =$E$7*$G$58 -> 247 | F58: è | G58: 0.2
A59: 3rd | B59: =$B$7*$G$59 -> 427.55 | C59: =$C$7*$G$59 -> 373.15 | D59: =$D$7*$G$59 -> 264.35 | E59: =$E$7*$G$59 -> 209.95 | F59: è | G59: 0.17
A60: 4th | B60: =$B$7*$G$60 -> 326.95 | C60: =$C$7*$G$60 -> 285.35 | D60: =$D$7*$G$60 -> 202.15 | E60: =$E$7*$G$60 -> 160.55 | F60: è | G60: 0.13
A61: 5th | B61: =$B$7*$G$61 -> 251.5 | C61: =$C$7*$G$61 -> 219.5 | D61: =$D$7*$G$61 -> 155.5 | E61: =$E$7*$G$61 -> 123.5 | F61: è | G61: 0.1
A62: 6th | B62: =$B$7*$G$62 -> 176.05 | C62: =$C$7*$G$62 -> 153.65 | D62: =$D$7*$G$62 -> 108.85 | E62: =$E$7*$G$62 -> 86.45 | F62: è | G62: 0.07
A63: 7th | B63: =$B$7*$G$63 -> 125.75 | C63: =$C$7*$G$63 -> 109.75 | D63: =$D$7*$G$63 -> 77.75 | E63: =$E$7*$G$63 -> 61.75 | F63: è | G63: 0.05
A64: 8th | B64: =$B$7*$G$64 -> 100.6 | C64: =$C$7*$G$64 -> 87.8 | D64: =$D$7*$G$64 -> 62.2 | E64: =$E$7*$G$64 -> 49.4 | F64: è | G64: 0.04
A65: Totals | B65: =SUM(B57:B64) -> 2515 | C65: =SUM(C57:C64) -> 2195 | D65: =SUM(D57:D64) -> 1555 | E65: =SUM(E57:E64) -> 1235 | F65: =SUM(B65:E65) -> 7500 | G65: =SUM(G57:G64) -> 1
A67: For 223-333 riders 10 places
A68: Placings | B68: 1D | C68: 2D | D68: 3D | E68: 4D
A69: 1st | B69: =$B$7*$G$69 -> 528.15 | C69: =$C$7*$G$69 -> 460.95 | D69: =$D$7*$G$69 -> 326.55 | E69: =$E$7*$G$69 -> 259.35 | F69: è | G69: 0.21
A70: 2nd | B70: =$B$7*$G$70 -> 452.7 | C70: =$C$7*$G$70 -> 395.1 | D70: =$D$7*$G$70 -> 279.9 | E70: =$E$7*$G$70 -> 222.3 | F70: è | G70: 0.18
A71: 3rd | B71: =$B$7*$G$71 -> 377.25 | C71: =$C$7*$G$71 -> 329.25 | D71: =$D$7*$G$71 -> 233.25 | E71: =$E$7*$G$71 -> 185.25 | F71: è | G71: 0.15
A72: 4th | B72: =$B$7*$G$72 -> 301.8 | C72: =$C$7*$G$72 -> 263.4 | D72: =$D$7*$G$72 -> 186.6 | E72: =$E$7*$G$72 -> 148.2 | F72: è | G72: 0.12
A73: 5th | B73: =$B$7*$G$73 -> 226.35 | C73: =$C$7*$G$73 -> 197.55 | D73: =$D$7*$G$73 -> 139.95 | E73: =$E$7*$G$73 -> 111.15 | F73: è | G73: 0.09
A74: 6th | B74: =$B$7*$G$74 -> 176.05 | C74: =$C$7*$G$74 -> 153.65 | D74: =$D$7*$G$74 -> 108.85 | E74: =$E$7*$G$74 -> 86.45 | F74: è | G74: 0.07
A75: 7th | B75: =$B$7*$G$75 -> 150.9 | C75: =$C$7*$G$75 -> 131.7 | D75: =$D$7*$G$75 -> 93.3 | E75: =$E$7*$G$75 -> 74.1 | F75: è | G75: 0.06
A76: 8th | B76: =$B$7*$G$76 -> 125.75 | C76: =$C$7*$G$76 -> 109.75 | D76: =$D$7*$G$76 -> 77.75 | E76: =$E$7*$G$76 -> 61.75 | F76: è | G76: 0.05
A77: 9th | B77: =$B$7*$G$77 -> 100.6 | C77: =$C$7*$G$77 -> 87.8 | D77: =$D$7*$G$77 -> 62.2 | E77: =$E$7*$G$77 -> 49.4 | F77: è | G77: 0.04
A78: 10th | B78: =$B$7*$G$78 -> 75.45 | C78: =$C$7*$G$78 -> 65.85 | D78: =$D$7*$G$78 -> 46.65 | E78: =$E$7*$G$78 -> 37.05 | F78: è | G78: 0.03
A79: Totals | B79: =SUM(B69:B78) -> 2515 | C79: =SUM(C69:C78) -> 2195 | D79: =SUM(D69:D78) -> 1555 | E79: =SUM(E69:E78) -> 1235 | F79: =B79+C79+D79+E79 -> 7500 | G79: =SUM(G69:G78) -> 1
A81: For 334-500 riders 12 places
A82: Placings | B82: 1D | C82: 2D | D82: 3D | E82: 4D
A83: 1st | B83: =$B$7*$G$83 -> 477.85 | C83: =$C$7*$G$83 -> 417.05 | D83: =$D$7*$G$83 -> 295.45 | E83: =$E$7*$G$83 -> 234.65 | F83: è | G83: 0.19
A84: 2nd | B84: =$B$7*$G$84 -> 377.25 | C84: =$C$7*$G$84 -> 329.25 | D84: =$D$7*$G$84 -> 233.25 | E84: =$E$7*$G$84 -> 185.25 | F84: è | G84: 0.15
A85: 3rd | B85: =$B$7*$G$85 -> 301.8 | C85: =$C$7*$G$85 -> 263.4 | D85: =$D$7*$G$85 -> 186.6 | E85: =$E$7*$G$85 -> 148.2 | F85: è | G85: 0.12
A86: 4th | B86: =$B$7*$G$86 -> 251.5 | C86: =$C$7*$G$86 -> 219.5 | D86: =$D$7*$G$86 -> 155.5 | E86: =$E$7*$G$86 -> 123.5 | F86: è | G86: 0.1
A87: 5th | B87: =$B$7*$G$87 -> 226.35 | C87: =$C$7*$G$87 -> 197.55 | D87: =$D$7*$G$87 -> 139.95 | E87: =$E$7*$G$87 -> 111.15 | F87: è | G87: 0.09
A88: 6th | B88: =$B$7*$G$88 -> 201.2 | C88: =$C$7*$G$88 -> 175.6 | D88: =$D$7*$G$88 -> 124.4 | E88: =$E$7*$G$88 -> 98.8 | F88: è | G88: 0.08
A89: 7th | B89: =$B$7*$G$89 -> 176.05 | C89: =$C$7*$G$89 -> 153.65 | D89: =$D$7*$G$89 -> 108.85 | E89: =$E$7*$G$89 -> 86.45 | F89: è | G89: 0.07
A90: 8th | B90: =$B$7*$G$90 -> 150.9 | C90: =$C$7*$G$90 -> 131.7 | D90: =$D$7*$G$90 -> 93.3 | E90: =$E$7*$G$90 -> 74.1 | F90: è | G90: 0.06
A91: 9th | B91: =$B$7*$G$91 -> 125.75 | C91: =$C$7*$G$91 -> 109.75 | D91: =$D$7*$G$91 -> 77.75 | E91: =$E$7*$G$91 -> 61.75 | F91: è | G91: 0.05
A92: 10th | B92: =$B$7*$G$92 -> 100.6 | C92: =$C$7*$G$92 -> 87.8 | D92: =$D$7*$G$92 -> 62.2 | E92: =$E$7*$G$92 -> 49.4 | F92: è | G92: 0.04
A93: 11th | B93: =$B$7*$G$93 -> 75.45 | C93: =$C$7*$G$93 -> 65.85 | D93: =$D$7*$G$93 -> 46.65 | E93: =$E$7*$G$93 -> 37.05 | F93: è | G93: 0.03
A94: 12th | B94: =$B$7*$G$94 -> 50.3 | C94: =$C$7*$G$94 -> 43.9 | D94: =$D$7*$G$94 -> 31.1 | E94: =$E$7*$G$94 -> 24.7 | F94: è | G94: 0.02
A95: Totals | B95: =SUM(B83:B94) -> 2515 | C95: =SUM(C83:C94) -> 2195 | D95: 1555 | E95: 1235 | F95: =B95+C95+D95+E95 -> 7500 | G95: =SUM(G83:G94) -> 1
A97: For 501-750 riders 15 places
A98: Placings | B98: 1D | C98: 2D | D98: 3D | E98: 4D
A99: 1st | B99: =$B$7*$G$99 -> 452.7 | C99: =$C$7*$G$99 -> 395.1 | D99: =$D$7*$G$99 -> 279.9 | E99: =$E$7*$G$99 -> 222.3 | F99: è | G99: 0.18
A100: 2nd | B100: =$B$7*$G$100 -> 377.25 | C100: =$C$7*$G$100 -> 329.25 | D100: =$D$7*$G$100 -> 233.25 | E100: =$E$7*$G$100 -> 185.25 | F100: è | G100: 0.15
A101: 3rd | B101: =$B$7*$G$101 -> 301.8 | C101: =$C$7*$G$101 -> 263.4 | D101: =$D$7*$G$101 -> 186.6 | E101: =$E$7*$G$101 -> 148.2 | F101: è | G101: 0.12
A102: 4th | B102: =$B$7*$G$102 -> 251.5 | C102: =$C$7*$G$102 -> 219.5 | D102: =$D$7*$G$102 -> 155.5 | E102: =$E$7*$G$102 -> 123.5 | F102: è | G102: 0.1
A103: 5th | B103: =$B$7*$G$103 -> 213.775 | C103: =$C$7*$G$103 -> 186.575 | D103: =$D$7*$G$103 -> 132.175 | E103: =$E$7*$G$103 -> 104.975 | F103: è | G103: 0.085
A104: 6th | B104: =$B$7*$G$104 -> 176.05 | C104: =$C$7*$G$104 -> 153.65 | D104: =$D$7*$G$104 -> 108.85 | E104: =$E$7*$G$104 -> 86.45 | F104: è | G104: 0.07
A105: 7th | B105: =$B$7*$G$105 -> 150.9 | C105: =$C$7*$G$105 -> 131.7 | D105: =$D$7*$G$105 -> 93.3 | E105: =$E$7*$G$105 -> 74.1 | F105: è | G105: 0.06
A106: 8th | B106: =$B$7*$G$106 -> 125.75 | C106: =$C$7*$G$106 -> 109.75 | D106: =$D$7*$G$106 -> 77.75 | E106: =$E$7*$G$106 -> 61.75 | F106: è | G106: 0.05
A107: 9th | B107: =$B$7*$G$107 -> 106.8875 | C107: =$C$7*$G$107 -> 93.2875 | D107: =$D$7*$G$107 -> 66.0875 | E107: =$E$7*$G$107 -> 52.4875 | F107: è | G107: 0.0425
A108: 10th | B108: =$B$7*$G$108 -> 88.025 | C108: =$C$7*$G$108 -> 76.825 | D108: =$D$7*$G$108 -> 54.425 | E108: =$E$7*$G$108 -> 43.225 | F108: è | G108: 0.035
A109: 11th | B109: =$B$7*$G$109 -> 75.45 | C109: =$C$7*$G$109 -> 65.85 | D109: =$D$7*$G$109 -> 46.65 | E109: =$E$7*$G$109 -> 37.05 | F109: è | G109: 0.03
A110: 12th | B110: =$B$7*$G$110 -> 62.875 | C110: =$C$7*$G$110 -> 54.875 | D110: =$D$7*$G$110 -> 38.875 | E110: =$E$7*$G$110 -> 30.875 | F110: è | G110: 0.025
A111: 13th | B111: =$B$7*$G$111 -> 50.3 | C111: =$C$7*$G$111 -> 43.9 | D111: =$D$7*$G$111 -> 31.1 | E111: =$E$7*$G$111 -> 24.7 | F111: è | G111: 0.02
A112: 14th | B112: =$B$7*$G$112 -> 44.0125 | C112: =$C$7*$G$112 -> 38.4125 | D112: =$D$7*$G$112 -> 27.2125 | E112: =$E$7*$G$112 -> 21.6125 | F112: è | G112: 0.0175
A113: 15th | B113: =$B$7*$G$113 -> 37.725 | C113: =$C$7*$G$113 -> 32.925 | D113: =$D$7*$G$113 -> 23.325 | E113: =$E$7*$G$113 -> 18.525 | F113: è | G113: 0.015
A114: Totals | B114: =SUM(B99:B113) -> 2515 | C114: =SUM(C99:C113) -> 2195 | D114: 1555 | E114: 1235 | F114: =B114+C114+D114+E114 -> 7500 | G114: =SUM(G99:G113) -> 1
A116: For 751-1200 riders 20 places
A117: Placings | B117: 1D | C117: 2D | D117: 3D | E117: 4D
A118: 1st | B118: =$B$7*$G$118 -> 352.1 | C118: =$C$7*$G$118 -> 307.3 | D118: =$D$7*$G$118 -> 217.7 | E118: =$E$7*$G$118 -> 172.9 | F118: è | G118: 0.14
A119: 2nd | B119: =$B$7*$G$119 -> 276.65 | C119: =$C$7*$G$119 -> 241.45 | D119: =$D$7*$G$119 -> 171.05 | E119: =$E$7*$G$119 -> 135.85 | F119: è | G119: 0.11
A120: 3rd | B120: =$B$7*$G$120 -> 226.35 | C120: =$C$7*$G$120 -> 197.55 | D120: =$D$7*$G$120 -> 139.95 | E120: =$E$7*$G$120 -> 111.15 | F120: è | G120: 0.09
A121: 4th | B121: =$B$7*$G$121 -> 193.655 | C121: =$C$7*$G$121 -> 169.015 | D121: =$D$7*$G$121 -> 119.735 | E121: =$E$7*$G$121 -> 95.095 | F121: è | G121: 0.077
A122: 5th | B122: =$B$7*$G$122 -> 176.05 | C122: =$C$7*$G$122 -> 153.65 | D122: =$D$7*$G$122 -> 108.85 | E122: =$E$7*$G$122 -> 86.45 | F122: è | G122: 0.07
A123: 6th | B123: =$B$7*$G$123 -> 163.475 | C123: =$C$7*$G$123 -> 142.675 | D123: =$D$7*$G$123 -> 101.075 | E123: =$E$7*$G$123 -> 80.275 | F123: è | G123: 0.065
A124: 7th | B124: =$B$7*$G$124 -> 150.9 | C124: =$C$7*$G$124 -> 131.7 | D124: =$D$7*$G$124 -> 93.3 | E124: =$E$7*$G$124 -> 74.1 | F124: è | G124: 0.06
A125: 8th | B125: =$B$7*$G$125 -> 138.325 | C125: =$C$7*$G$125 -> 120.725 | D125: =$D$7*$G$125 -> 85.525 | E125: =$E$7*$G$125 -> 67.925 | F125: è | G125: 0.055
A126: 9th | B126: =$B$7*$G$126 -> 125.75 | C126: =$C$7*$G$126 -> 109.75 | D126: =$D$7*$G$126 -> 77.75 | E126: =$E$7*$G$126 -> 61.75 | F126: è | G126: 0.05
A127: 10th | B127: =$B$7*$G$127 -> 113.175 | C127: =$C$7*$G$127 -> 98.775 | D127: =$D$7*$G$127 -> 69.975 | E127: =$E$7*$G$127 -> 55.575 | F127: è | G127: 0.045
A128: 11th | B128: =$B$7*$G$128 -> 100.6 | C128: =$C$7*$G$128 -> 87.8 | D128: =$D$7*$G$128 -> 62.2 | E128: =$E$7*$G$128 -> 49.4 | F128: è | G128: 0.04
A129: 12th | B129: =$B$7*$G$129 -> 93.055 | C129: =$C$7*$G$129 -> 81.215 | D129: =$D$7*$G$129 -> 57.535 | E129: =$E$7*$G$129 -> 45.695 | F129: è | G129: 0.037
A130: 13th | B130: =$B$7*$G$130 -> 82.995 | C130: =$C$7*$G$130 -> 72.435 | D130: =$D$7*$G$130 -> 51.315 | E130: =$E$7*$G$130 -> 40.755 | F130: è | G130: 0.033
A131: 14th | B131: =$B$7*$G$131 -> 72.935 | C131: =$C$7*$G$131 -> 63.655 | D131: =$D$7*$G$131 -> 45.095 | E131: =$E$7*$G$131 -> 35.815 | F131: è | G131: 0.029
A132: 15th | B132: =$B$7*$G$132 -> 62.875 | C132: =$C$7*$G$132 -> 54.875 | D132: =$D$7*$G$132 -> 38.875 | E132: =$E$7*$G$132 -> 30.875 | F132: è | G132: 0.025
A133: 16th | B133: =$B$7*$G$133 -> 52.815 | C133: =$C$7*$G$133 -> 46.095 | D133: =$D$7*$G$133 -> 32.655 | E133: =$E$7*$G$133 -> 25.935 | F133: è | G133: 0.021
A134: 17th | B134: =$B$7*$G$134 -> 42.755 | C134: =$C$7*$G$134 -> 37.315 | D134: =$D$7*$G$134 -> 26.435 | E134: =$E$7*$G$134 -> 20.995 | F134: è | G134: 0.017
A135: 18th | B135: =$B$7*$G$135 -> 35.21 | C135: =$C$7*$G$135 -> 30.73 | D135: =$D$7*$G$135 -> 21.77 | E135: =$E$7*$G$135 -> 17.29 | F135: è | G135: 0.014
A136: 19th | B136: =$B$7*$G$136 -> 30.18 | C136: =$C$7*$G$136 -> 26.34 | D136: =$D$7*$G$136 -> 18.66 | E136: =$E$7*$G$136 -> 14.82 | F136: è | G136: 0.012
A137: 20th | B137: =$B$7*$G$137 -> 25.15 | C137: =$C$7*$G$137 -> 21.95 | D137: =$D$7*$G$137 -> 15.55 | E137: =$E$7*$G$137 -> 12.35 | F137: è | G137: 0.01
A138: Totals | B138: =SUM(B118:B137) -> 2515 | C138: =SUM(C118:C137) -> 2195 | D138: 1555 | E138: 1235 | F138: =B138+C138+D138+E138 -> 7500 | G138: =SUM(G118:G137) -> 1
A140: For 1201 or More riders 30 places
A141: Placings | B141: 1D | C141: 2D | D141: 3D | E141: 4D
A142: 1st | B142: =$B$7*$G$142 -> 301.8 | C142: =$C$7*$G$142 -> 263.4 | D142: =$D$7*$G$142 -> 186.6 | E142: =$E$7*$G$142 -> 148.2 | F142: è | G142: 0.12
A143: 2nd | B143: =$B$7*$G$143 -> 238.925 | C143: =$C$7*$G$143 -> 208.525 | D143: =$D$7*$G$143 -> 147.725 | E143: =$E$7*$G$143 -> 117.325 | F143: è | G143: 0.095
A144: 3rd | B144: =$B$7*$G$144 -> 183.595 | C144: =$C$7*$G$144 -> 160.235 | D144: =$D$7*$G$144 -> 113.515 | E144: =$E$7*$G$144 -> 90.155 | F144: è | G144: 0.073
A145: 4th | B145: =$B$7*$G$145 -> 155.93 | C145: =$C$7*$G$145 -> 136.09 | D145: =$D$7*$G$145 -> 96.41 | E145: =$E$7*$G$145 -> 76.57 | F145: è | G145: 0.062
A146: 5th | B146: =$B$7*$G$146 -> 125.75 | C146: =$C$7*$G$146 -> 109.75 | D146: =$D$7*$G$146 -> 77.75 | E146: =$E$7*$G$146 -> 61.75 | F146: è | G146: 0.05
A147: 6th | B147: =$B$7*$G$147 -> 113.175 | C147: =$C$7*$G$147 -> 98.775 | D147: =$D$7*$G$147 -> 69.975 | E147: =$E$7*$G$147 -> 55.575 | F147: è | G147: 0.045
A148: 7th | B148: =$B$7*$G$148 -> 108.145 | C148: =$C$7*$G$148 -> 94.385 | D148: =$D$7*$G$148 -> 66.865 | E148: =$E$7*$G$148 -> 53.105 | F148: è | G148: 0.043
A149: 8th | B149: =$B$7*$G$149 -> 100.6 | C149: =$C$7*$G$149 -> 87.8 | D149: =$D$7*$G$149 -> 62.2 | E149: =$E$7*$G$149 -> 49.4 | F149: è | G149: 0.04
A150: 9th | B150: =$B$7*$G$150 -> 93.055 | C150: =$C$7*$G$150 -> 81.215 | D150: =$D$7*$G$150 -> 57.535 | E150: =$E$7*$G$150 -> 45.695 | F150: è | G150: 0.037
A151: 10th | B151: =$B$7*$G$151 -> 88.025 | C151: =$C$7*$G$151 -> 76.825 | D151: =$D$7*$G$151 -> 54.425 | E151: =$E$7*$G$151 -> 43.225 | F151: è | G151: 0.035
A152: 11th | B152: =$B$7*$G$152 -> 82.995 | C152: =$C$7*$G$152 -> 72.435 | D152: =$D$7*$G$152 -> 51.315 | E152: =$E$7*$G$152 -> 40.755 | F152: è | G152: 0.033
A153: 12th | B153: =$B$7*$G$153 -> 77.965 | C153: =$C$7*$G$153 -> 68.045 | D153: =$D$7*$G$153 -> 48.205 | E153: =$E$7*$G$153 -> 38.285 | F153: è | G153: 0.031
A154: 13th | B154: =$B$7*$G$154 -> 72.935 | C154: =$C$7*$G$154 -> 63.655 | D154: =$D$7*$G$154 -> 45.095 | E154: =$E$7*$G$154 -> 35.815 | F154: è | G154: 0.029
A155: 14th | B155: =$B$7*$G$155 -> 67.905 | C155: =$C$7*$G$155 -> 59.265 | D155: =$D$7*$G$155 -> 41.985 | E155: =$E$7*$G$155 -> 33.345 | F155: è | G155: 0.027
A156: 15th | B156: =$B$7*$G$156 -> 62.875 | C156: =$C$7*$G$156 -> 54.875 | D156: =$D$7*$G$156 -> 38.875 | E156: =$E$7*$G$156 -> 30.875 | F156: è | G156: 0.025
A157: 16th | B157: =$B$7*$G$157 -> 60.36 | C157: =$C$7*$G$157 -> 52.68 | D157: =$D$7*$G$157 -> 37.32 | E157: =$E$7*$G$157 -> 29.64 | F157: è | G157: 0.024
A158: 17th | B158: =$B$7*$G$158 -> 57.845 | C158: =$C$7*$G$158 -> 50.485 | D158: =$D$7*$G$158 -> 35.765 | E158: =$E$7*$G$158 -> 28.405 | F158: è | G158: 0.023
A159: 18th | B159: =$B$7*$G$159 -> 55.33 | C159: =$C$7*$G$159 -> 48.29 | D159: =$D$7*$G$159 -> 34.21 | E159: =$E$7*$G$159 -> 27.17 | F159: è | G159: 0.022
A160: 19th | B160: =$B$7*$G$160 -> 52.815 | C160: =$C$7*$G$160 -> 46.095 | D160: =$D$7*$G$160 -> 32.655 | E160: =$E$7*$G$160 -> 25.935 | F160: è | G160: 0.021
A161: 20th | B161: =$B$7*$G$161 -> 50.3 | C161: =$C$7*$G$161 -> 43.9 | D161: =$D$7*$G$161 -> 31.1 | E161: =$E$7*$G$161 -> 24.7 | F161: è | G161: 0.02
A162: 21st | B162: =$B$7*$G$162 -> 47.785 | C162: =$C$7*$G$162 -> 41.705 | D162: =$D$7*$G$162 -> 29.545 | E162: =$E$7*$G$162 -> 23.465 | F162: è | G162: 0.019
A163: 22nd | B163: =$B$7*$G$163 -> 45.27 | C163: =$C$7*$G$163 -> 39.51 | D163: =$D$7*$G$163 -> 27.99 | E163: =$E$7*$G$163 -> 22.23 | F163: è | G163: 0.018
A164: 23rd | B164: =$B$7*$G$164 -> 42.755 | C164: =$C$7*$G$164 -> 37.315 | D164: =$D$7*$G$164 -> 26.435 | E164: =$E$7*$G$164 -> 20.995 | F164: è | G164: 0.017
A165: 24th | B165: =$B$7*$G$165 -> 40.24 | C165: =$C$7*$G$165 -> 35.12 | D165: =$D$7*$G$165 -> 24.88 | E165: =$E$7*$G$165 -> 19.76 | F165: è | G165: 0.016
A166: 25th | B166: =$B$7*$G$166 -> 37.725 | C166: =$C$7*$G$166 -> 32.925 | D166: =$D$7*$G$166 -> 23.325 | E166: =$E$7*$G$166 -> 18.525 | F166: è | G166: 0.015
A167: 26th | B167: =$B$7*$G$167 -> 35.21 | C167: =$C$7*$G$167 -> 30.73 | D167: =$D$7*$G$167 -> 21.77 | E167: =$E$7*$G$167 -> 17.29 | F167: è | G167: 0.014
A168: 27th | B168: =$B$7*$G$168 -> 32.695 | C168: =$C$7*$G$168 -> 28.535 | D168: =$D$7*$G$168 -> 20.215 | E168: =$E$7*$G$168 -> 16.055 | F168: è | G168: 0.013
A169: 28th | B169: =$B$7*$G$169 -> 30.18 | C169: =$C$7*$G$169 -> 26.34 | D169: =$D$7*$G$169 -> 18.66 | E169: =$E$7*$G$169 -> 14.82 | F169: è | G169: 0.012
A170: 29th | B170: =$B$7*$G$170 -> 27.665 | C170: =$C$7*$G$170 -> 24.145 | D170: =$D$7*$G$170 -> 17.105 | E170: =$E$7*$G$170 -> 13.585 | F170: è | G170: 0.011
A171: 30th | B171: =$B$7*$G$171 -> 25.15 | C171: =$C$7*$G$171 -> 21.95 | D171: =$D$7*$G$171 -> 15.55 | E171: =$E$7*$G$171 -> 12.35 | F171: è | G171: 0.01
A172: Totals | B172: =SUM(B142:B171) -> 2515 | C172: =SUM(C142:C171) -> 2195 | D172: =SUM(D142:D171) -> 1555 | E172: =SUM(E142:E171) -> 1235 | F172: =B172+C172+D172+E172 -> 7500 | G172: =SUM(G142:G171) -> 1

Sheet 5D Payout BBR
A1: 5D Payout BBR
A2: Entry Fee | B2: # Entries | C2: % Payback | D2: $ From Entry | E2: Added $ | F2: Total Payout | G2: Total $ Held
A3: 25 | B3: 13 | C3: 0.8 | D3: =$A$3*$C$3*$B$3 -> 260 | E3: 0 | F3: =($A$3*$C$3)*$B$3+$E$3 -> 260 | G3: =$A$3*(100%-$C$3)*$B$3 -> 65
A5: % in each D | B5: 0.3 | C5: 0.25 | D5: 0.2 | E5: 0.15 | F5: 0.1 | G5: Total % Payout | H5: =SUM(B5:F5) -> 1
B6: 1D | C6: 2D | D6: 3D | E6: 4D | F6: 5D
B7: =(($A$3*$B$3*$C$3*$B$5)+($E$3*$B$5)) -> 78 | C7: =(($A$3*$B$3*$C$3*$C$5)+($E$3*$C$5)) -> 65 | D7: =(($A$3*$B$3*$C$3*$D$5)+($E$3*$D$5)) -> 52 | E7: =(($A$3*$B$3*$C$3*$E$5)+($E$3*$E$5)) -> 39 | F7: =(($A$3*$B$3*$C$3*$F$5)+($E$3*$F$5)) -> 26
A8: Totals | B8: =SUM(B7) -> 78 | C8: =SUM(C7) -> 65 | D8: 52 | E8: 39 | F8: 26 | G8: =SUM(B8:F8) -> 260
A10: For 1-25 riders 1 place
A11: Placings | B11: 1D | C11: 2D | D11: 3D | E11: 4D | F11: 5D
A12: 1st | B12: =$B$7*$H$12 -> 78 | C12: =$C$7*$H$12 -> 65 | D12: =$D$7*$H$12 -> 52 | E12: =$E$7*$H$12 -> 39 | F12: =$F$7*$H$12 -> 26 | G12: è | H12: 1
A13: Totals | B13: =SUM(B12:B12) -> 78 | C13: =SUM(C12:C12) -> 65 | D13: =SUM(D12:D12) -> 52 | E13: =SUM(E12:E12) -> 39 | F13: =SUM(F12) -> 26 | G13: =SUM(B13:F13) -> 260 | H13: =SUM(H12) -> 1
A15: For 26-50 riders 2 places
A16: Placings | B16: 1D | C16: 2D | D16: 3D | E16: 4D | F16: 5D
A17: 1st | B17: =$B$7*$H$17 -> 46.8 | C17: =$C$7*$H$17 -> 39 | D17: =$D$7*$H$17 -> 31.2 | E17: =$E$7*$H$17 -> 23.4 | F17: =$F$7*$H$17 -> 15.6 | G17: è | H17: 0.6
A18: 2nd | B18: =$B$7*$H$18 -> 31.2 | C18: =$C$7*$H$18 -> 26 | D18: =$D$7*$H$18 -> 20.8 | E18: =$E$7*$H$18 -> 15.6 | F18: =$F$7*$H$18 -> 10.4 | G18: è | H18: 0.4
A19: Totals | B19: =SUM(B17:B18) -> 78 | C19: =SUM(C17:C18) -> 65 | D19: =SUM(D17:D18) -> 52 | E19: =SUM(E17:E18) -> 39 | F19: =SUM(F17:F18) -> 26 | G19: =SUM(B19:F19) -> 260 | H19: =SUM(H17:H18) -> 1
A21: For 51-100 riders 3 places
A22: Placings | B22: 1D | C22: 2D | D22: 3D | E22: 4D | F22: 5D
A23: 1st | B23: =$B$7*$H$23 -> 39 | C23: =$C$7*$H$23 -> 32.5 | D23: =$D$7*$H$23 -> 26 | E23: =$E$7*$H$23 -> 19.5 | F23: =$F$7*$H$23 -> 13 | G23: è | H23: 0.5
A24: 2nd | B24: =$B$7*$H$24 -> 23.4 | C24: =$C$7*$H$24 -> 19.5 | D24: =$D$7*$H$24 -> 15.6 | E24: =$E$7*$H$24 -> 11.7 | F24: =$F$7*$H$24 -> 7.8 | G24: è | H24: 0.3
A25: 3rd | B25: =$B$7*$H$25 -> 15.6 | C25: =$C$7*$H$25 -> 13 | D25: =$D$7*$H$25 -> 10.4 | E25: =$E$7*$H$25 -> 7.8 | F25: =$F$7*$H$25 -> 5.2 | G25: è | H25: 0.2
A26: Totals | B26: =SUM(B23:B25) -> 78 | C26: =SUM(C23:C25) -> 65 | D26: =SUM(D23:D25) -> 52 | E26: =SUM(E23:E25) -> 39 | F26: =SUM(F23:F25) -> 26 | G26: =SUM(B26:F26) -> 260 | H26: =SUM(H23:H25) -> 1
A28: For 101-143 riders 4 places
A29: Placings | B29: 1D | C29: 2D | D29: 3D | E29: 4D | F29: 5D
A30: 1st | B30: =$B$7*$H$30 -> 31.2 | C30: =$C$7*$H$30 -> 26 | D30: =$D$7*$H$30 -> 20.8 | E30: =$E$7*$H$30 -> 15.6 | F30: =$F$7*$H$30 -> 10.4 | G30: è | H30: 0.4
A31: 2nd | B31: =$B$7*$H$31 -> 23.4 | C31: =$C$7*$H$31 -> 19.5 | D31: =$D$7*$H$31 -> 15.6 | E31: =$E$7*$H$31 -> 11.7 | F31: =$F$7*$H$31 -> 7.8 | G31: è | H31: 0.3
A32: 3rd | B32: =$B$7*$H$32 -> 15.6 | C32: =$C$7*$H$32 -> 13 | D32: =$D$7*$H$32 -> 10.4 | E32: =$E$7*$H$32 -> 7.8 | F32: =$F$7*$H$32 -> 5.2 | G32: è | H32: 0.2
A33: 4th | B33: =$B$7*$H$33 -> 7.8 | C33: =$C$7*$H$33 -> 6.5 | D33: =$D$7*$H$33 -> 5.2 | E33: =$E$7*$H$33 -> 3.9 | F33: =$F$7*$H$33 -> 2.6 | G33: è | H33: 0.1
A34: Totals | B34: =SUM(B30:B33) -> 78 | C34: =SUM(C30:C33) -> 65 | D34: =SUM(D30:D33) -> 52 | E34: =SUM(E30:E33) -> 39 | F34: =SUM(F30:F33) -> 26 | G34: =SUM(B34:F34) -> 260 | H34: =SUM(H30:H33) -> 1
A36: For 144-200 riders 5 places
A37: Placings | B37: 1D | C37: 2D | D37: 3D | E37: 4D | F37: 5D
A38: 1st | B38: =$B$7*$H$38 -> 25.74 | C38: =$C$7*$H$38 -> 21.45 | D38: =$D$7*$H$38 -> 17.16 | E38: =$E$7*$H$38 -> 12.87 | F38: =$F$7*$H$38 -> 8.58 | G38: è | H38: 0.33
A39: 2nd | B39: =$B$7*$H$39 -> 21.06 | C39: =$C$7*$H$39 -> 17.55 | D39: =$D$7*$H$39 -> 14.04 | E39: =$E$7*$H$39 -> 10.53 | F39: =$F$7*$H$39 -> 7.02 | G39: è | H39: 0.27
A40: 3rd | B40: =$B$7*$H$40 -> 15.6 | C40: =$C$7*$H$40 -> 13 | D40: =$D$7*$H$40 -> 10.4 | E40: =$E$7*$H$40 -> 7.8 | F40: =$F$7*$H$40 -> 5.2 | G40: è | H40: 0.2
A41: 4th | B41: =$B$7*$H$41 -> 10.14 | C41: =$C$7*$H$41 -> 8.45 | D41: =$D$7*$H$41 -> 6.76 | E41: =$E$7*$H$41 -> 5.07 | F41: =$F$7*$H$41 -> 3.38 | G41: è | H41: 0.13
A42: 5th | B42: =$B$7*$H$42 -> 5.46 | C42: =$C$7*$H$42 -> 4.55 | D42: =$D$7*$H$42 -> 3.64 | E42: =$E$7*$H$42 -> 2.73 | F42: =$F$7*$H$42 -> 1.82 | G42: è | H42: 0.07
A43: Totals | B43: =SUM(B38:B42) -> 78 | C43: =SUM(C38:C42) -> 65 | D43: =SUM(D38:D42) -> 52 | E43: =SUM(E38:E42) -> 39 | F43: =SUM(F38:F42) -> 26 | G43: =SUM(B43:F43) -> 260 | H43: =SUM(H38:H42) -> 1
A45: For 201-250 riders 6 places
A46: Placings | B46: 1D | C46: 2D | D46: 3D | E46: 4D | F46: 5D
A47: 1st | B47: =$B$7*$H$47 -> 22.62 | C47: =$C$7*$H$47 -> 18.85 | D47: =$D$7*$H$47 -> 15.08 | E47: =$E$7*$H$47 -> 11.31 | F47: =$F$7*$H$47 -> 7.54 | G47: è | H47: 0.29
A48: 2nd | B48: =$B$7*$H$48 -> 18.72 | C48: =$C$7*$H$48 -> 15.6 | D48: =$D$7*$H$48 -> 12.48 | E48: =$E$7*$H$48 -> 9.36 | F48: =$F$7*$H$48 -> 6.24 | G48: è | H48: 0.24
A49: 3rd | B49: =$B$7*$H$49 -> 14.82 | C49: =$C$7*$H$49 -> 12.35 | D49: =$D$7*$H$49 -> 9.88 | E49: =$E$7*$H$49 -> 7.41 | F49: =$F$7*$H$49 -> 4.94 | G49: è | H49: 0.19
A50: 4th | B50: =$B$7*$H$50 -> 10.92 | C50: =$C$7*$H$50 -> 9.1 | D50: =$D$7*$H$50 -> 7.28 | E50: =$E$7*$H$50 -> 5.46 | F50: =$F$7*$H$50 -> 3.64 | G50: è | H50: 0.14
A51: 5th | B51: =$B$7*$H$51 -> 7.02 | C51: =$C$7*$H$51 -> 5.85 | D51: =$D$7*$H$51 -> 4.68 | E51: =$E$7*$H$51 -> 3.51 | F51: =$F$7*$H$51 -> 2.34 | G51: è | H51: 0.09
A52: 6th | B52: =$B$7*$H$52 -> 3.9 | C52: =$C$7*$H$52 -> 3.25 | D52: =$D$7*$H$52 -> 2.6 | E52: =$E$7*$H$52 -> 1.95 | F52: =$F$7*$H$52 -> 1.3 | G52: è | H52: 0.05
A53: Totals | B53: =SUM(B47:B52) -> 78 | C53: =SUM(C47:C52) -> 65 | D53: =SUM(D47:D52) -> 52 | E53: =SUM(E47:E52) -> 39 | F53: =SUM(F47:F52) -> 26 | G53: =SUM(B53:F53) -> 260 | H53: =SUM(H47:H52) -> 1
A55: For 251-333 riders 8 places
A56: Placings | B56: 1D | C56: 2D | D56: 3D | E56: 4D | F56: 5D
A57: 1st | B57: =$B$7*$H$57 -> 18.72 | C57: =$C$7*$H$57 -> 15.6 | D57: =$D$7*$H$57 -> 12.48 | E57: =$E$7*$H$57 -> 9.36 | F57: =$F$7*$H$57 -> 6.24 | G57: è | H57: 0.24
A58: 2nd | B58: =$B$7*$H$58 -> 15.6 | C58: =$C$7*$H$58 -> 13 | D58: =$D$7*$H$58 -> 10.4 | E58: =$E$7*$H$58 -> 7.8 | F58: =$F$7*$H$58 -> 5.2 | G58: è | H58: 0.2
A59: 3rd | B59: =$B$7*$H$59 -> 13.26 | C59: =$C$7*$H$59 -> 11.05 | D59: =$D$7*$H$59 -> 8.84 | E59: =$E$7*$H$59 -> 6.63 | F59: =$F$7*$H$59 -> 4.42 | G59: è | H59: 0.17
A60: 4th | B60: =$B$7*$H$60 -> 10.14 | C60: =$C$7*$H$60 -> 8.45 | D60: =$D$7*$H$60 -> 6.76 | E60: =$E$7*$H$60 -> 5.07 | F60: =$F$7*$H$60 -> 3.38 | G60: è | H60: 0.13
A61: 5th | B61: =$B$7*$H$61 -> 7.8 | C61: =$C$7*$H$61 -> 6.5 | D61: =$D$7*$H$61 -> 5.2 | E61: =$E$7*$H$61 -> 3.9 | F61: =$F$7*$H$61 -> 2.6 | G61: è | H61: 0.1
A62: 6th | B62: =$B$7*$H$62 -> 5.46 | C62: =$C$7*$H$62 -> 4.55 | D62: =$D$7*$H$62 -> 3.64 | E62: =$E$7*$H$62 -> 2.73 | F62: =$F$7*$H$62 -> 1.82 | G62: è | H62: 0.07
A63: 7th | B63: =$B$7*$H$63 -> 3.9 | C63: =$C$7*$H$63 -> 3.25 | D63: =$D$7*$H$63 -> 2.6 | E63: =$E$7*$H$63 -> 1.95 | F63: =$F$7*$H$63 -> 1.3 | G63: è | H63: 0.05
A64: 8th | B64: =$B$7*$H$64 -> 3.12 | C64: =$C$7*$H$64 -> 2.6 | D64: =$D$7*$H$64 -> 2.08 | E64: =$E$7*$H$64 -> 1.56 | F64: =$F$7*$H$64 -> 1.04 | G64: è | H64: 0.04
A65: Totals | B65: =SUM(B57:B64) -> 78 | C65: =SUM(C57:C64) -> 65 | D65: =SUM(D57:D64) -> 52 | E65: =SUM(E57:E64) -> 39 | F65: =SUM(F57:F64) -> 26 | G65: =SUM(B65:F65) -> 260 | H65: =SUM(H57:H64) -> 1
A67: For 334-500 riders 10 places
A68: Placings | B68: 1D | C68: 2D | D68: 3D | E68: 4D | F68: 5D
A69: 1st | B69: =$B$7*$H$69 -> 16.38 | C69: =$C$7*$H$69 -> 13.65 | D69: =$D$7*$H$69 -> 10.92 | E69: =$E$7*$H$69 -> 8.19 | F69: =$F$7*$H$69 -> 5.46 | G69: è | H69: 0.21
A70: 2nd | B70: =$B$7*$H$70 -> 14.04 | C70: =$C$7*$H$70 -> 11.7 | D70: =$D$7*$H$70 -> 9.36 | E70: =$E$7*$H$70 -> 7.02 | F70: =$F$7*$H$70 -> 4.68 | G70: è | H70: 0.18
A71: 3rd | B71: =$B$7*$H$71 -> 11.7 | C71: =$C$7*$H$71 -> 9.75 | D71: =$D$7*$H$71 -> 7.8 | E71: =$E$7*$H$71 -> 5.85 | F71: =$F$7*$H$71 -> 3.9 | G71: è | H71: 0.15
A72: 4th | B72: =$B$7*$H$72 -> 9.36 | C72: =$C$7*$H$72 -> 7.8 | D72: =$D$7*$H$72 -> 6.24 | E72: =$E$7*$H$72 -> 4.68 | F72: =$F$7*$H$72 -> 3.12 | G72: è | H72: 0.12
A73: 5th | B73: =$B$7*$H$73 -> 7.02 | C73: =$C$7*$H$73 -> 5.85 | D73: =$D$7*$H$73 -> 4.68 | E73: =$E$7*$H$73 -> 3.51 | F73: =$F$7*$H$73 -> 2.34 | G73: è | H73: 0.09
A74: 6th | B74: =$B$7*$H$74 -> 5.46 | C74: =$C$7*$H$74 -> 4.55 | D74: =$D$7*$H$74 -> 3.64 | E74: =$E$7*$H$74 -> 2.73 | F74: =$F$7*$H$74 -> 1.82 | G74: è | H74: 0.07
A75: 7th | B75: =$B$7*$H$75 -> 4.68 | C75: =$C$7*$H$75 -> 3.9 | D75: =$D$7*$H$75 -> 3.12 | E75: =$E$7*$H$75 -> 2.34 | F75: =$F$7*$H$75 -> 1.56 | G75: è | H75: 0.06
A76: 8th | B76: =$B$7*$H$76 -> 3.9 | C76: =$C$7*$H$76 -> 3.25 | D76: =$D$7*$H$76 -> 2.6 | E76: =$E$7*$H$76 -> 1.95 | F76: =$F$7*$H$76 -> 1.3 | G76: è | H76: 0.05
A77: 9th | B77: =$B$7*$H$77 -> 3.12 | C77: =$C$7*$H$77 -> 2.6 | D77: =$D$7*$H$77 -> 2.08 | E77: =$E$7*$H$77 -> 1.56 | F77: =$F$7*$H$77 -> 1.04 | G77: è | H77: 0.04
A78: 10th | B78: =$B$7*$H$78 -> 2.34 | C78: =$C$7*$H$78 -> 1.95 | D78: =$D$7*$H$78 -> 1.56 | E78: =$E$7*$H$78 -> 1.17 | F78: =$F$7*$H$78 -> 0.78 | G78: è | H78: 0.03
A79: Totals | B79: =SUM(B69:B78) -> 78 | C79: =SUM(C69:C78) -> 65 | D79: 52 | E79: 39 | F79: 26 | G79: =SUM(B79:F79) -> 260 | H79: =SUM(H69:H78) -> 1
A81: For 501-666 riders 12 places
A82: Placings | B82: 1D | C82: 2D | D82: 3D | E82: 4D | F82: 5D
A83: 1st | B83: =$B$7*$H$83 -> 14.82 | C83: =$C$7*$H$83 -> 12.35 | D83: =$D$7*$H$83 -> 9.88 | E83: =$E$7*$H$83 -> 7.41 | F83: =$F$7*$H$83 -> 4.94 | G83: è | H83: 0.19
A84: 2nd | B84: =$B$7*$H$84 -> 11.7 | C84: =$C$7*$H$84 -> 9.75 | D84: =$D$7*$H$84 -> 7.8 | E84: =$E$7*$H$84 -> 5.85 | F84: =$F$7*$H$84 -> 3.9 | G84: è | H84: 0.15
A85: 3rd | B85: =$B$7*$H$85 -> 9.36 | C85: =$C$7*$H$85 -> 7.8 | D85: =$D$7*$H$85 -> 6.24 | E85: =$E$7*$H$85 -> 4.68 | F85: =$F$7*$H$85 -> 3.12 | G85: è | H85: 0.12
A86: 4th | B86: =$B$7*$H$86 -> 7.8 | C86: =$C$7*$H$86 -> 6.5 | D86: =$D$7*$H$86 -> 5.2 | E86: =$E$7*$H$86 -> 3.9 | F86: =$F$7*$H$86 -> 2.6 | G86: è | H86: 0.1
A87: 5th | B87: =$B$7*$H$87 -> 7.02 | C87: =$C$7*$H$87 -> 5.85 | D87: =$D$7*$H$87 -> 4.68 | E87: =$E$7*$H$87 -> 3.51 | F87: =$F$7*$H$87 -> 2.34 | G87: è | H87: 0.09
A88: 6th | B88: =$B$7*$H$88 -> 6.24 | C88: =$C$7*$H$88 -> 5.2 | D88: =$D$7*$H$88 -> 4.16 | E88: =$E$7*$H$88 -> 3.12 | F88: =$F$7*$H$88 -> 2.08 | G88: è | H88: 0.08
A89: 7th | B89: =$B$7*$H$89 -> 5.46 | C89: =$C$7*$H$89 -> 4.55 | D89: =$D$7*$H$89 -> 3.64 | E89: =$E$7*$H$89 -> 2.73 | F89: =$F$7*$H$89 -> 1.82 | G89: è | H89: 0.07
A90: 8th | B90: =$B$7*$H$90 -> 4.68 | C90: =$C$7*$H$90 -> 3.9 | D90: =$D$7*$H$90 -> 3.12 | E90: =$E$7*$H$90 -> 2.34 | F90: =$F$7*$H$90 -> 1.56 | G90: è | H90: 0.06
A91: 9th | B91: =$B$7*$H$91 -> 3.9 | C91: =$C$7*$H$91 -> 3.25 | D91: =$D$7*$H$91 -> 2.6 | E91: =$E$7*$H$91 -> 1.95 | F91: =$F$7*$H$91 -> 1.3 | G91: è | H91: 0.05
A92: 10th | B92: =$B$7*$H$92 -> 3.12 | C92: =$C$7*$H$92 -> 2.6 | D92: =$D$7*$H$92 -> 2.08 | E92: =$E$7*$H$92 -> 1.56 | F92: =$F$7*$H$92 -> 1.04 | G92: è | H92: 0.04
A93: 11th | B93: =$B$7*$H$93 -> 2.34 | C93: =$C$7*$H$93 -> 1.95 | D93: =$D$7*$H$93 -> 1.56 | E93: =$E$7*$H$93 -> 1.17 | F93: =$F$7*$H$93 -> 0.78 | G93: è | H93: 0.03
A94: 12th | B94: =$B$7*$H$94 -> 1.56 | C94: =$C$7*$H$94 -> 1.3 | D94: =$D$7*$H$94 -> 1.04 | E94: =$E$7*$H$94 -> 0.78 | F94: =$F$7*$H$94 -> 0.52 | G94: è | H94: 0.02
A95: Totals | B95: =SUM(B83:B94) -> 78 | C95: =SUM(C83:C94) -> 65 | D95: =SUM(D83:D94) -> 52 | E95: =SUM(E83:E94) -> 39 | F95: =SUM(F83:F94) -> 26 | G95: =SUM(B95:F95) -> 260 | H95: =SUM(H83:H94) -> 1
A97: For 667-1000 riders 15 places
A98: Placings | B98: 1D | C98: 2D | D98: 3D | E98: 4D | F98: 5D
A99: 1st | B99: =$B$7*$H$99 -> 14.04 | C99: =$C$7*$H$99 -> 11.7 | D99: =$D$7*$H$99 -> 9.36 | E99: =$E$7*$H$99 -> 7.02 | F99: =$F$7*$H$99 -> 4.68 | G99: è | H99: 0.18
A100: 2nd | B100: =$B$7*$H$100 -> 11.7 | C100: =$C$7*$H$100 -> 9.75 | D100: =$D$7*$H$100 -> 7.8 | E100: =$E$7*$H$100 -> 5.85 | F100: =$F$7*$H$100 -> 3.9 | G100: è | H100: 0.15
A101: 3rd | B101: =$B$7*$H$101 -> 9.36 | C101: =$C$7*$H$101 -> 7.8 | D101: =$D$7*$H$101 -> 6.24 | E101: =$E$7*$H$101 -> 4.68 | F101: =$F$7*$H$101 -> 3.12 | G101: è | H101: 0.12
A102: 4th | B102: =$B$7*$H$102 -> 7.8 | C102: =$C$7*$H$102 -> 6.5 | D102: =$D$7*$H$102 -> 5.2 | E102: =$E$7*$H$102 -> 3.9 | F102: =$F$7*$H$102 -> 2.6 | G102: è | H102: 0.1
A103: 5th | B103: =$B$7*$H$103 -> 6.63 | C103: =$C$7*$H$103 -> 5.525 | D103: =$D$7*$H$103 -> 4.42 | E103: =$E$7*$H$103 -> 3.315 | F103: =$F$7*$H$103 -> 2.21 | G103: è | H103: 0.085
A104: 6th | B104: =$B$7*$H$104 -> 5.46 | C104: =$C$7*$H$104 -> 4.55 | D104: =$D$7*$H$104 -> 3.64 | E104: =$E$7*$H$104 -> 2.73 | F104: =$F$7*$H$104 -> 1.82 | G104: è | H104: 0.07
A105: 7th | B105: =$B$7*$H$105 -> 4.68 | C105: =$C$7*$H$105 -> 3.9 | D105: =$D$7*$H$105 -> 3.12 | E105: =$E$7*$H$105 -> 2.34 | F105: =$F$7*$H$105 -> 1.56 | G105: è | H105: 0.06
A106: 8th | B106: =$B$7*$H$106 -> 3.9 | C106: =$C$7*$H$106 -> 3.25 | D106: =$D$7*$H$106 -> 2.6 | E106: =$E$7*$H$106 -> 1.95 | F106: =$F$7*$H$106 -> 1.3 | G106: è | H106: 0.05
A107: 9th | B107: =$B$7*$H$107 -> 3.315 | C107: =$C$7*$H$107 -> 2.7625 | D107: =$D$7*$H$107 -> 2.21 | E107: =$E$7*$H$107 -> 1.6575 | F107: =$F$7*$H$107 -> 1.105 | G107: è | H107: 0.0425
A108: 10th | B108: =$B$7*$H$108 -> 2.73 | C108: =$C$7*$H$108 -> 2.275 | D108: =$D$7*$H$108 -> 1.82 | E108: =$E$7*$H$108 -> 1.365 | F108: =$F$7*$H$108 -> 0.91 | G108: è | H108: 0.035
A109: 11th | B109: =$B$7*$H$109 -> 2.34 | C109: =$C$7*$H$109 -> 1.95 | D109: =$D$7*$H$109 -> 1.56 | E109: =$E$7*$H$109 -> 1.17 | F109: =$F$7*$H$109 -> 0.78 | G109: è | H109: 0.03
A110: 12th | B110: =$B$7*$H$110 -> 1.95 | C110: =$C$7*$H$110 -> 1.625 | D110: =$D$7*$H$110 -> 1.3 | E110: =$E$7*$H$110 -> 0.975 | F110: =$F$7*$H$110 -> 0.65 | G110: è | H110: 0.025
A111: 13th | B111: =$B$7*$H$111 -> 1.56 | C111: =$C$7*$H$111 -> 1.3 | D111: =$D$7*$H$111 -> 1.04 | E111: =$E$7*$H$111 -> 0.78 | F111: =$F$7*$H$111 -> 0.52 | G111: è | H111: 0.02
A112: 14th | B112: =$B$7*$H$112 -> 1.365 | C112: =$C$7*$H$112 -> 1.1375 | D112: =$D$7*$H$112 -> 0.91 | E112: =$E$7*$H$112 -> 0.6825 | F112: =$F$7*$H$112 -> 0.455 | G112: è | H112: 0.0175
A113: 15th | B113: =$B$7*$H$113 -> 1.17 | C113: =$C$7*$H$113 -> 0.975 | D113: =$D$7*$H$113 -> 0.78 | E113: =$E$7*$H$113 -> 0.585 | F113: =$F$7*$H$113 -> 0.39 | G113: è | H113: 0.015
A114: Totals | B114: =SUM(B99:B113) -> 78 | C114: =SUM(C99:C113) -> 65 | D114: =SUM(D99:D113) -> 52 | E114: =SUM(E99:E113) -> 39 | F114: =SUM(F99:F113) -> 26 | G114: =SUM(B114:F114) -> 260 | H114: =SUM(H99:H113) -> 1
A116: For 1001-1500 riders 20 places
A117: Placings | B117: 1D | C117: 2D | D117: 3D | E117: 4D | F117: 5D
A118: 1st | B118: =$B$7*$H$118 -> 10.92 | C118: =$C$7*$H$118 -> 9.1 | D118: =$D$7*$H$118 -> 7.28 | E118: =$E$7*$H$118 -> 5.46 | F118: =$F$7*$H$118 -> 3.64 | G118: è | H118: 0.14
A119: 2nd | B119: =$B$7*$H$119 -> 8.58 | C119: =$C$7*$H$119 -> 7.15 | D119: =$D$7*$H$119 -> 5.72 | E119: =$E$7*$H$119 -> 4.29 | F119: =$F$7*$H$119 -> 2.86 | G119: è | H119: 0.11
A120: 3rd | B120: =$B$7*$H$120 -> 7.02 | C120: =$C$7*$H$120 -> 5.85 | D120: =$D$7*$H$120 -> 4.68 | E120: =$E$7*$H$120 -> 3.51 | F120: =$F$7*$H$120 -> 2.34 | G120: è | H120: 0.09
A121: 4th | B121: =$B$7*$H$121 -> 6.006 | C121: =$C$7*$H$121 -> 5.005 | D121: =$D$7*$H$121 -> 4.004 | E121: =$E$7*$H$121 -> 3.003 | F121: =$F$7*$H$121 -> 2.002 | G121: è | H121: 0.077
A122: 5th | B122: =$B$7*$H$122 -> 5.46 | C122: =$C$7*$H$122 -> 4.55 | D122: =$D$7*$H$122 -> 3.64 | E122: =$E$7*$H$122 -> 2.73 | F122: =$F$7*$H$122 -> 1.82 | G122: è | H122: 0.07
A123: 6th | B123: =$B$7*$H$123 -> 5.07 | C123: =$C$7*$H$123 -> 4.225 | D123: =$D$7*$H$123 -> 3.38 | E123: =$E$7*$H$123 -> 2.535 | F123: =$F$7*$H$123 -> 1.69 | G123: è | H123: 0.065
A124: 7th | B124: =$B$7*$H$124 -> 4.68 | C124: =$C$7*$H$124 -> 3.9 | D124: =$D$7*$H$124 -> 3.12 | E124: =$E$7*$H$124 -> 2.34 | F124: =$F$7*$H$124 -> 1.56 | G124: è | H124: 0.06
A125: 8th | B125: =$B$7*$H$125 -> 4.29 | C125: =$C$7*$H$125 -> 3.575 | D125: =$D$7*$H$125 -> 2.86 | E125: =$E$7*$H$125 -> 2.145 | F125: =$F$7*$H$125 -> 1.43 | G125: è | H125: 0.055
A126: 9th | B126: =$B$7*$H$126 -> 3.9 | C126: =$C$7*$H$126 -> 3.25 | D126: =$D$7*$H$126 -> 2.6 | E126: =$E$7*$H$126 -> 1.95 | F126: =$F$7*$H$126 -> 1.3 | G126: è | H126: 0.05
A127: 10th | B127: =$B$7*$H$127 -> 3.51 | C127: =$C$7*$H$127 -> 2.925 | D127: =$D$7*$H$127 -> 2.34 | E127: =$E$7*$H$127 -> 1.755 | F127: =$F$7*$H$127 -> 1.17 | G127: è | H127: 0.045
A128: 11th | B128: =$B$7*$H$128 -> 3.12 | C128: =$C$7*$H$128 -> 2.6 | D128: =$D$7*$H$128 -> 2.08 | E128: =$E$7*$H$128 -> 1.56 | F128: =$F$7*$H$128 -> 1.04 | G128: è | H128: 0.04
A129: 12th | B129: =$B$7*$H$129 -> 2.886 | C129: =$C$7*$H$129 -> 2.405 | D129: =$D$7*$H$129 -> 1.924 | E129: =$E$7*$H$129 -> 1.443 | F129: =$F$7*$H$129 -> 0.962 | G129: è | H129: 0.037
A130: 13th | B130: =$B$7*$H$130 -> 2.574 | C130: =$C$7*$H$130 -> 2.145 | D130: =$D$7*$H$130 -> 1.716 | E130: =$E$7*$H$130 -> 1.287 | F130: =$F$7*$H$130 -> 0.858 | G130: è | H130: 0.033
A131: 14th | B131: =$B$7*$H$131 -> 2.262 | C131: =$C$7*$H$131 -> 1.885 | D131: =$D$7*$H$131 -> 1.508 | E131: =$E$7*$H$131 -> 1.131 | F131: =$F$7*$H$131 -> 0.754 | G131: è | H131: 0.029
A132: 15th | B132: =$B$7*$H$132 -> 1.95 | C132: =$C$7*$H$132 -> 1.625 | D132: =$D$7*$H$132 -> 1.3 | E132: =$E$7*$H$132 -> 0.975 | F132: =$F$7*$H$132 -> 0.65 | G132: è | H132: 0.025
A133: 16th | B133: =$B$7*$H$133 -> 1.638 | C133: =$C$7*$H$133 -> 1.365 | D133: =$D$7*$H$133 -> 1.092 | E133: =$E$7*$H$133 -> 0.819 | F133: =$F$7*$H$133 -> 0.546 | G133: è | H133: 0.021
A134: 17th | B134: =$B$7*$H$134 -> 1.326 | C134: =$C$7*$H$134 -> 1.105 | D134: =$D$7*$H$134 -> 0.884 | E134: =$E$7*$H$134 -> 0.663 | F134: =$F$7*$H$134 -> 0.442 | G134: è | H134: 0.017
A135: 18th | B135: =$B$7*$H$135 -> 1.092 | C135: =$C$7*$H$135 -> 0.91 | D135: =$D$7*$H$135 -> 0.728 | E135: =$E$7*$H$135 -> 0.546 | F135: =$F$7*$H$135 -> 0.364 | G135: è | H135: 0.014
A136: 19th | B136: =$B$7*$H$136 -> 0.936 | C136: =$C$7*$H$136 -> 0.78 | D136: =$D$7*$H$136 -> 0.624 | E136: =$E$7*$H$136 -> 0.468 | F136: =$F$7*$H$136 -> 0.312 | G136: è | H136: 0.012
A137: 20th | B137: =$B$7*$H$137 -> 0.78 | C137: =$C$7*$H$137 -> 0.65 | D137: =$D$7*$H$137 -> 0.52 | E137: =$E$7*$H$137 -> 0.39 | F137: =$F$7*$H$137 -> 0.26 | G137: è | H137: 0.01
A138: Totals | B138: =SUM(B118:B137) -> 78 | C138: =SUM(C118:C137) -> 65 | D138: 52 | E138: 39 | F138: 26 | G138: =SUM(B138:F138) -> 260 | H138: =SUM(H118:H137) -> 1
A140: For 1501 or More riders 30 places
A141: Placings | B141: 1D | C141: 2D | D141: 3D | E141: 4D | F141: 5D
A142: 1st | B142: =$B$7*$H142 -> 9.36 | C142: =$C$7*$H142 -> 7.8 | D142: =$D$7*$H142 -> 6.24 | E142: =$E$7*$H142 -> 4.68 | F142: =$F$7*$H142 -> 3.12 | G142: è | H142: 0.12
A143: 2nd | B143: =$B$7*$H143 -> 7.41 | C143: 6.175 | D143: 4.94 | E143: 3.705 | F143: 2.47 | G143: è | H143: 0.095
A144: 3rd | B144: =$B$7*$H144 -> 5.694 | C144: 4.745 | D144: 3.796 | E144: 2.847 | F144: 1.898 | G144: è | H144: 0.073
A145: 4th | B145: =$B$7*$H145 -> 4.836 | C145: 4.03 | D145: 3.224 | E145: 2.418 | F145: 1.612 | G145: è | H145: 0.062
A146: 5th | B146: 3.9 | C146: 3.25 | D146: 2.6 | E146: 1.95 | F146: 1.3 | G146: è | H146: 0.05
A147: 6th | B147: 3.51 | C147: 2.925 | D147: 2.34 | E147: 1.755 | F147: 1.17 | G147: è | H147: 0.045
A148: 7th | B148: 3.354 | C148: 2.795 | D148: 2.236 | E148: 1.677 | F148: 1.118 | G148: è | H148: 0.043
A149: 8th | B149: 3.12 | C149: 2.6 | D149: 2.08 | E149: 1.56 | F149: 1.04 | G149: è | H149: 0.04
A150: 9th | B150: 2.886 | C150: 2.405 | D150: 1.924 | E150: 1.443 | F150: 0.962 | G150: è | H150: 0.037
A151: 10th | B151: 2.73 | C151: 2.275 | D151: 1.82 | E151: 1.365 | F151: 0.91 | G151: è | H151: 0.035
A152: 11th | B152: 2.574 | C152: 2.145 | D152: 1.716 | E152: 1.287 | F152: 0.858 | G152: è | H152: 0.033
A153: 12th | B153: 2.418 | C153: 2.015 | D153: 1.612 | E153: 1.209 | F153: 0.806 | G153: è | H153: 0.031
A154: 13th | B154: 2.262 | C154: 1.885 | D154: 1.508 | E154: 1.131 | F154: 0.754 | G154: è | H154: 0.029
A155: 14th | B155: 2.106 | C155: 1.755 | D155: 1.404 | E155: 1.053 | F155: 0.702 | G155: è | H155: 0.027
A156: 15th | B156: 1.95 | C156: 1.625 | D156: 1.3 | E156: 0.975 | F156: 0.65 | G156: è | H156: 0.025
A157: 16th | B157: 1.872 | C157: 1.56 | D157: 1.248 | E157: 0.936 | F157: 0.624 | G157: è | H157: 0.024
A158: 17th | B158: 1.794 | C158: 1.495 | D158: 1.196 | E158: 0.897 | F158: 0.598 | G158: è | H158: 0.023
A159: 18th | B159: 1.716 | C159: 1.43 | D159: 1.144 | E159: 0.858 | F159: 0.572 | G159: è | H159: 0.022
A160: 19th | B160: 1.638 | C160: 1.365 | D160: 1.092 | E160: 0.819 | F160: 0.546 | G160: è | H160: 0.021
A161: 20th | B161: 1.56 | C161: 1.3 | D161: 1.04 | E161: 0.78 | F161: 0.52 | G161: è | H161: 0.02
A162: 21st | B162: 1.482 | C162: 1.235 | D162: 0.988 | E162: 0.741 | F162: 0.494 | G162: è | H162: 0.019
A163: 22nd | B163: 1.404 | C163: 1.17 | D163: 0.936 | E163: 0.702 | F163: 0.468 | G163: è | H163: 0.018
A164: 23rd | B164: 1.326 | C164: 1.105 | D164: 0.884 | E164: 0.663 | F164: 0.442 | G164: è | H164: 0.017
A165: 24th | B165: 1.248 | C165: 1.04 | D165: 0.832 | E165: 0.624 | F165: 0.416 | G165: è | H165: 0.016
A166: 25th | B166: 1.17 | C166: 0.975 | D166: 0.78 | E166: 0.585 | F166: 0.39 | G166: è | H166: 0.015
A167: 26th | B167: 1.092 | C167: 0.91 | D167: 0.728 | E167: 0.546 | F167: 0.364 | G167: è | H167: 0.014
A168: 27th | B168: 1.014 | C168: 0.845 | D168: 0.676 | E168: 0.507 | F168: 0.338 | G168: è | H168: 0.013
A169: 28th | B169: 0.936 | C169: 0.78 | D169: 0.624 | E169: 0.468 | F169: 0.312 | G169: è | H169: 0.012
A170: 29th | B170: 0.858 | C170: 0.715 | D170: 0.572 | E170: 0.429 | F170: 0.286 | G170: è | H170: 0.011
A171: 30th | B171: 0.78 | C171: 0.65 | D171: 0.52 | E171: 0.39 | F171: 0.26 | G171: è | H171: 0.01
A172: Totals | B172: =SUM(B142:B171) -> 78 | C172: =SUM(C142:C171) -> 65 | D172: 52 | E172: 39 | F172: 26 | G172: =SUM(B172:F172) -> 260 | H172: =SUM(H142:H171) -> 1

Sheet DON'T TOUCH (hidden)
A2: Yes | C2: S | D2: 5 | E2: X
C3: A | D3: 10
C4: Y | D4: 15
C5: P | D5: BP
D6: SCR
